{"text_format":"1","workbook":"xlsx","n_sheets":20,"sheets":["ITEMS PRESUPUESTO","GASTOS DE PERSONAL","MONITORÍAS ACADÉMICAS","COMPRA EQUIPO","MATERIALES Y SUMINISTROS","MANTENIMIENTO","SERVICIOS PUBLICOS","ARRENDAMIENTO","VIATICOS Y GASTOS DE VIAJE","IMPRESOS Y PUBLICACIONES","LIBROS Y REVISTAS","COMUNICACION Y TRANSPORTE","SEGUROS","CAPACITACION","IMPUESTO-CONTRIBUCIONES Y G.F","OTROS GASTOS POR ADQUISICIÓN","ESTUDIANTES","INVERSIÓN","INGRESOS","FLUJO DE CAJA"],"not_rendered":{"charts":0,"images":5,"macros":1,"external_links":6,"defined_names":144,"comments":2,"pivot_tables":0},"unopened":[],"bounds":{"document_bytes":16777216,"sheet_cells":100000,"rows_first":2000,"rows_last":500,"rows_between":2000,"halvings":0,"cell_chars":16384,"cell_head_chars":4096},"cells_cut":0,"cells_raw":0,"read":"whole","date_system":"1900"}

{"sheet":"ITEMS PRESUPUESTO","index":0,"n_rows":33,"n_cols":4,"rows_kept":33,"cut":false,"hidden":false,"merged":[[1,1,1,9],[2,1,2,9],[3,1,3,9],[4,1,4,9],[6,1,6,9],[7,3,7,9],[5,1,5,9],[11,1,11,3],[11,4,11,9],[12,1,12,3],[12,4,12,9],[8,1,8,3],[8,4,8,9],[9,1,9,3],[9,4,9,9],[10,1,10,3],[10,4,10,9]]}
[]
[]
[]
[null,"VICERRECTORÍA ADMINISTRATIVA Y FINANCIERA",null,"VICERRECTORIA ADMINISTRATIVA"]
[null,"FORMATO INTERNO DE PRESUPUESTO ",null,"FORMATOS PARA PRESENTACIÓN DE PROYECTOS"]
[null,"PROYECTOS Y PROGRAMAS DE DOCENCIA, INVESTIGACIÓN Y EXTENSIÓN",null,"FORMATOS PARA PRESENTACIÓN DE PROYECTOS"]
[null,"VIGENCIA 2020"]
[]
[null,"NOMBRE DEL PROYECTO"]
[null,"DURACIÓN DEL PROYECTO"]
[null,"CODIGO DEL PROYECTO"]
[null,"RESPONSABLE DEL PROYECTO"]
[null,"DEPENDENCIA"]
[]
[]
[]
[]
[]
[]
[]
[]
[]
[]
[]
[]
[]
[]
[]
[]
[]
[]
[]
[null,"IMPORTANTE: POR FAVOR IMPRIMA SÓLO LAS HOJAS  O RUBROS QUE TENGAN REQUERIMIENTOS."]

{"sheet":"GASTOS DE PERSONAL","index":1,"n_rows":81,"n_cols":252,"rows_kept":81,"cut":false,"hidden":false,"merged":[[16,2,16,10],[10,2,10,10],[15,2,15,10],[13,2,13,10],[8,2,8,7],[8,8,8,10],[9,2,9,10],[14,2,14,10],[11,2,11,10],[12,2,12,10],[30,3,33,3],[30,4,33,4],[31,10,33,10],[30,2,33,2],[17,2,17,10],[20,2,20,10],[21,2,21,10],[27,6,27,7],[19,2,19,10],[82,2,82,9],[0,1,0,11],[1,1,1,11],[2,1,2,11],[3,1,3,11],[4,1,4,11],[30,6,33,6],[30,8,33,8],[80,2,80,9],[30,9,30,10],[22,2,22,10],[18,2,18,10],[23,2,23,5],[30,5,33,5],[31,9,33,9],[6,2,6,10]]}
[]
[null,"VICERRECTORÍA ADMINISTRATIVA Y FINANCIERA"]
[null,"FORMATO INTERNO DE PRESUPUESTO DE PROYECTOS  Y PROGRAMAS"]
[null,{"$f":"+'ITEMS PRESUPUESTO'!B7:J7","v":"VIGENCIA 2020"}]
[]
[]
[null,null,"PROYECCIÓN CONTRATACIÓN DE PERSONAL",null,null,null,null,null,null,null,null,null,null,null,null,null,null,null,null,null,null,null,null,null,null,null,null,null,null,null,null,null,null,null,null,null,null,null,null,null,null,null,null,null,null,null,null,null,null,null,null,null,null,null,null,null,null,null,null,null,null,null,null,null,null,null,null,null,null,null,null,null,null,null,null,null,null,null,null,null,null,null,null,null,null,null,null,null,null,null,null,null,null,null,null,null,null,null,null,null,null,null,null,null,null,null,null,null,null,null,null,null,null,null,null,null,null,null,null,null,null,null,null,null,null,null,null,null,null,null,null,null,null,null,null,null,null,null,null,null,null,null,null,null,null,null,null,null,null,null,null,null,null,null,null,null,null,null,null,null,null,null,null,null,null,null,null,null,null,null,null,null,null,null,null,null,null,null,null,null,null,null,null,null,null,null,null,null,null,null,null,null,null,null,null,null,null,null,null,null,null,null,null,null,null,null,null,null,null,null,null,null,null,null,null,null,null,null,null,null,null,null,null,null,null,null,null,null,null,null,null,null,null,null,null,null,null,null,null,null,null,null,null,null,null,null,null,null,null,null,null,false]
[]
[null,null,"TIPOS DE CONTRATACIÓN:"]
[null,"PS","PS = Orden o Contrato de Prestación de Servicios: Es el pago de honorarios por los servicios prestados a personas naturales o jurídicas, con autonomía del contratista. \nSe incluyen los servicios de traducción de artículos, contratación de horas para la educación no formal tales como diplomados, congresos, seminarios, talleres, entre otros."]
[null,"O","O = Ocasional de Proyecto: Contratación menor a doce (12) meses autorizada para programas de Pregrado y Posgrado, proyectos Institucionales, laboratorios, organismos, entre otros proyectos de largo aliento. La asignación salarial se establece con base en las atividades a desarrollar y el nivel de responsabilidad y acorde a las tablas de la Universidad; su autorización está sujeta a la validación por parte de la Vicerrectoría Administrativa y Financiera, la disponibilidad presupuestal y la duración del proyecto. "]
[null,"HC","TA = Transitorio Administrativo: Vinculación que la Universidad realiza para atender apoyo y gestión de labores administrativas donde no exista el personal de planta, provendrán de una selección objetiva al perfil del cargo. La asignación salarial se establece con el nivel de responsabilidad  y su autorización está sujeta a la validación de la necesidad del mismo por parte de la Vicerrectoría Administrativa y la disponibilidad presupuestal. Contratación menor a 1 año."]
[null,"M","TD = Transitorio Docente:  Corresponde a la vinculación de docentes con una dedicación de tiempo completo o de medio tiempo que sean requeridos para atender servicios de docencia en los programas de pregrado en ciclo en la modalidad de Jornada Especial (oferta aprobada por el Consejo Superior) por periodos inferiores a un año. Su autorización está sujeta a la viabilidad presupuestal y a los topes establecidos en el estudio financiero."]
[null,"TG","DC= Docente catedráticos:  Es la vinculación establecida en la Ley 30 de 1992, el Estatuto Docente y los Acuerdos No. 15 de 1996 y 12 de 1997.  Esta contratación se realiza de acuerdo con la categoría del docente en el escalafón y las horas a dictar, según la asignación de carga académica que realice el Director o Coordinador del programa. Aplica para programas en ciclo en la modalidad Jornada Especial (Aprobada por el Consejo Superior). Nota: Esta vinculación se realiza a través de Gestión de Talento Humano."]
[null,"ILEX","HC = Hora Cátedra: Contempla el pago por concepto de docencia directa para los programas de Pregrado y Posgrado de acuerdo con el plan de estudios. Esta contratación se realiza por el número de horas a dictar y con el valor de hora integral establecido en las tablas del Acuerdo 21 de  2007; a través de órdenes de servicio (Para personal no vinculado con la universidad que se requiera para pregrado en la modadlidad de cohortes y posgrados) o Resolución de incentivo tipo \"Hora cátedra Bonificación Acuerdo 21\" para el personal que labora en la Universidad.\nSe incluyen en este concepto el pago de hora de los cursos intersemestrales, 4,5% SMMLV según el Acuerdo 10 de 2005, los cuales se realizarán por orden de servicios para el personal no vinculado a la Universidad o por Resolución tipo \"Intersemestrales\" para el personal vinculado."]
[null,"ST","M = Monitorías:  Apoyo a actividades en las áreas de Docencia, lnvestigación, Social o de Proyectos desarrolladas por estudiantes (Acuerdo No. 38 del 2012). El valor de la hora es 0,74% SMMLV ($6.130 /hora para 2019). Las modadlidades utilizadas en los proyectos son: \nMonitorías Académicas:  Es el apoyo al docente que dirige una asignatura práctica o teórico-práctica durante el semestre académico. Las asignaturas son validadas por la Vicerrectoría Académica. Favor diligenciar las necesidades en la pestaña \"Monitorías Académicas\".\nMonitorías de Proyecto: Es el apoyo en actividades requeridas para el desarrollo del mismo."]
[null,"EA","TG=Directores, Jurados y Evaluadores:  Contempla el pago de directores y jurados por tesis o trabajos de grado, evaluadores de publicaciones y en el marco de contratos o convenios, entre otros. \nNota: El incentivo a pagar por este concepto a los directores de trabajos de grado de los programas de pregrado en Jornada Especial o cohorte deberá estar enmarcado en el Acuerdo No. 29 del 24 de junio de 2009."]
[null,"BE","ILEX= Cursos Ilex: Contempla la contratacion al proyecto 511-4-131-06 ILEX UTP para los cursos de pregrado, el valor del curso por estudiante corresponde al 15% SMMLV.\nPara los cursos de comprensión para Posgrados y demás servicios ofertados por el ILEX Extensión código 511-22-214-05, los valores son establecidos por la Coordinación del ILEX (Resolución No. 237 del 17 de enero de 2018). "]
[null,"CO","ST= Servicios técnicos especiales: Es la contratación que se realiza en el marco de los proyectos con Colciencias a través de contratos de prestación de servicios."]
[null,null,"Incentivos:  Corresponde al pago de bonificaciones al personal de la Universidad por participación en proyectos según lo establecido en el Acuerdo No. 21 de 2007:"]
[null,null,"EA = Estímulo Labores Administrativas: Es el incentivo para el personal de la UTP que participe en actividades administrativas de proyectos por fuera del horario laboral regido por la fórmula:  (Salario Básico*1,6*1,25)/240. \nNota: En ningún caso este estímulo podrá superar el 50% de la asignación mensual."]
[null,null,"BE = Bonificación Servicios de Extensión: Contempla la bonificación para el personal que labora en la Universidad (Planta y transitorios) por fuera de su horario laboral y que participa en proyectos de extensión tales como educación no formal, servicios de laboratorio, consultorias, gestión tecnológica, entre otros, e investigación de acuerdo con lo establecido en el Acuerdo 21 de 2007."]
[null,null,"CO = Coordinación: Es el incentivo para el personal que labora en la Universidad (Planta o transitorio) para realizar actividades de Coordinación de un proyecto o programa. Para proyectos o programas que no son de Posgrado hasta el 15%  y para  Posgrados hasta el 20% de la asignación básica mensual. En ningún caso se reconocerán estos porcentajes por cohorte pero sí se reconocerán en ofertas en otra ciudad. No podrá designarse más de un Coordinador o Director para una misma actividad."]
[null,null,"Nota: Diligenciar únicamente los espacios en blanco"]
[null,null,1,null,"SMMLV 2019:",828116,"Incremento Proyectado SMMLV 2020:",0.06]
[null,null,null,null,null,null,"Incremento Proyectado IPC:",3.4000000000000002E-2]
[]
[null,null,null,null,null,null,"Incremento Proyectado Planta y Transitorios",null,{"$f":"+$H$26+1.32%","v":4.7200000000000006E-2}]
[null,null,null,null,null,null,"Aux Transporte proyectado 2020",null,{"$f":"97032*(1+H25)","v":102853.92}]
[]
[null,null,"CEDULA","NOMBRE Y APELIDOS DEL FUNCIONARIO","TITULO ACADEMICO","TIPO DE CONTRATACIÓN","CARGO O ACTIVIDAD A DESEMPEÑAR","DEDICACIÓN","VALOR HORA O ASIGNACIÓN MES","AÑO"]
[null,null,null,null,null,null,null,"MT = 1",null,"NO. HORAS O MESES ","TOTAL"]
[null,null,null,null,null,null,null,"TC = 2"]
[null,null,null,null,null,null,null,"N.A."]
[null,null,null,null,null,null,null,null,null,null,{"$f":"IF(J35=\"\",IF(I35>0,\"Falta # horas o meses\",0),IF(AND(I35>0,F35=\"\"),\"Falta diligenciar el tipo de contratación\",IF(OR(F35=\"O\",F35=\"TA\",F35=\"TD\"),(IF(I35<=$F$25*2,$I$29+(I35*(1+$I$28)*J35)*1.7,(I35*(1+$I$28)*J35)*1.7)),IF(OR(F35=\"DC\",F35=\"EA\",F35=\"CO\"),(I35*(1+$I$28)*J35),IF(OR(F35=\"PS\",F35=\"TG\",F35=\"ST\"),(I35*(1+$H$26)*J35),(I35*(1+$H$25)*J35))))))","v":0}]
[null,null,null,null,null,null,null,null,null,null,0]
[null,null,null,null,null,null,null,null,null,null,0]
[null,null,null,null,null,null,null,null,null,null,0]
[null,null,null,null,null,null,null,null,null,null,0]
[null,null,null,null,null,null,null,null,null,null,0]
[null,null,null,null,null,null,null,null,null,null,0]
[null,null,null,null,null,null,null,null,null,null,0]
[null,null,null,null,null,null,null,null,null,null,0]
[null,null,null,null,null,null,null,null,null,null,0]
[null,null,null,null,null,null,null,null,null,null,0]
[null,null,null,null,null,null,null,null,null,null,0]
[null,null,null,null,null,null,null,null,null,null,{"$f":"IF(J47=\"\",IF(I47>0,\"Falta # horas o meses\",0),IF(AND(I47>0,F47=\"\"),\"Falta diligenciar el tipo de contratación\",IF(OR(F47=\"O\",F47=\"TA\",F47=\"TD\"),(IF(I47<=$F$25*2,$I$29+(I47*(1+$I$28)*J47)*1.7,(I47*(1+$I$28)*J47)*1.7)),IF(OR(F47=\"DC\",F47=\"EA\",F47=\"CO\"),(I47*(1+$I$28)*J47),IF(OR(F47=\"PS\",F47=\"TG\",F47=\"ST\"),(I47*(1+$H$26)*J47),(I47*(1+$H$25)*J47))))))","v":0}]
[null,null,null,null,null,null,null,null,null,null,0]
[null,null,null,null,null,null,null,null,null,null,0]
[null,null,null,null,null,null,null,null,null,null,0]
[null,null,null,null,null,null,null,null,null,null,0]
[null,null,null,null,null,null,null,null,null,null,0]
[null,null,null,null,null,null,null,null,null,null,0]
[null,null,null,null,null,null,null,null,null,null,0]
[null,null,null,null,null,null,null,null,null,null,0]
[null,null,null,null,null,null,null,null,null,null,0]
[null,null,null,null,null,null,null,null,null,null,0]
[null,null,null,null,null,null,null,null,null,null,0]
[null,null,null,null,null,null,null,null,null,null,0]
[null,null,null,null,null,null,null,null,null,null,0]
[null,null,null,null,null,null,null,null,null,null,0]
[null,null,null,null,null,null,null,null,null,null,0]
[null,null,null,null,null,null,null,null,null,null,0]
[null,null,null,null,null,null,null,null,null,null,0]
[null,null,null,null,null,null,null,null,null,null,0]
[null,null,null,null,null,null,null,null,null,null,0]
[null,null,null,null,null,null,null,null,null,null,0]
[null,null,null,null,null,null,null,null,null,null,0]
[null,null,null,null,null,null,null,null,null,null,0]
[null,null,null,null,null,null,null,null,null,null,0]
[null,null,null,null,null,null,null,null,null,null,0]
[null,null,null,null,null,null,null,null,null,null,0]
[null,null,null,null,null,null,null,null,null,null,0]
[null,null,null,null,null,null,null,null,null,null,0]
[null,null,null,null,null,null,null,null,null,null,0]
[null,null,null,null,null,null,null,null,null,null,0]
[null,null,null,null,null,null,null,null,null,null,0]
[null,null,null,null,null,null,null,null,null,null,0]
[null,null,null,null,null,null,null,null,null,null,0]
[null,null,null,null,null,null,null,null,null,null,0]
[null,null,"TOTAL CONTRATACIÓN DE PERSONAL",null,null,null,null,null,null,null,{"$f":"SUM(K35:K80)","v":0}]

{"sheet":"MONITORÍAS ACADÉMICAS","index":2,"n_rows":45,"n_cols":14,"rows_kept":45,"cut":false,"hidden":false,"merged":[[10,2,10,13],[15,2,15,11],[17,10,17,12],[13,2,13,13],[21,9,22,9],[14,2,14,7],[18,2,18,8],[18,9,18,12],[21,13,22,13],[6,2,6,13],[44,2,44,12],[21,6,21,7],[21,10,22,10],[21,11,22,11],[21,12,22,12],[21,2,22,2],[21,3,22,3],[21,4,22,4],[21,8,22,8],[21,5,22,5],[16,2,16,11],[11,2,11,9],[11,12,11,13],[12,2,12,13],[8,2,8,13],[0,1,0,14],[1,1,1,14],[2,1,2,14],[3,1,3,14],[4,1,4,14]]}
[]
[null,"VICERRECTORIA ADMINISTRATIVA"]
[null,"FORMATO INTERNO DE PRESUPUESTO"]
[null,{"$f":"+'ITEMS PRESUPUESTO'!B7","v":"VIGENCIA 2020"}]
[]
[]
[null,null,"PROYECCION MONITORÍAS ACADÉMICAS"]
[]
[null,null,"FORMATO EXCLUSIVO PARA PROGRAMAS DE PREGRADO EN JORNADA ESPECIAL, CERES Y PROGRAMAS DE PREGRADO EN EXTENSIÓN"]
[]
[null,null,"La Monitoría académica es la contratación de estudiantes de pregrado para llevar a cabo actividades de apoyo docente hasta por 8 horas semanales. La asignación de horas monitoría depende del tipo de asignatura:"]
[null,null,"1. En asignaturas teóricas: La hora de monitoría equivale al 50% de la intensidad horaria de la asignatura."]
[null,null,"2. En asignaturas prácticas: La hora monitoría equivale al total de las horas de la asignatura."]
[null,null,"3. En asignaturas teórico - prácticas: La hora monitoría equivale al total de las horas prácticas. En el caso de las horas prácticas sean menores a las teóricas se aprobará hasta el 50% de la intensidad horaria de la asignatura."]
[]
[null,null,"Nota 1: Las asignaturas con Monitoría, son las establecidas en el Estudio Técnico y Financiero del Programa en Jornada Especial."]
[null,null,"Nota 2: La duración en semanas de Monitorías Académicas en el semestre puede ser  máximo de 16 semanas."]
[null,null,null,null,null,null,null,null,null,null,"Valor Hora Monitoría 2019:",null,null,{"$f":"828116*0.0074","v":6128.0583999999999}]
[null,null,null,null,null,null,null,null,null,"Incremento Proyectado 2020 =",null,null,null,0.06]
[]
[]
[null,null,"PROGRAMA ACADÉMICO","CÓDIGO ASIGNATURA","ASIGNATURA","CATEGORÍA (Teórica, Práctica, Teórico-práctica)","HORAS",null,"No. GRUPOS SEMESTRE","HORAS PERMITIDAS","SEMANAS SEMESTRE","TOTAL HORAS SEMESTRE","TOTAL HORAS AÑO","VALOR TOTAL"]
[null,null,null,null,null,null,"HT","HP"]
[null,null,null,null,null,null,null,null,null,{"$f":"IF(H24=0,G24/2,IF(H24>((H24+G24)/2),H24,(G24+H24)/2))*I24","v":0},null,{"$f":"J24*K24","v":0},{"$f":"L24*2","v":0},{"$f":"+M24*$N$18*(1+$N$19)","v":0}]
[null,null,null,null,null,null,null,null,null,{"$f":"IF(H25=0,G25/2,IF(H25>((H25+G25)/2),H25,(G25+H25)/2))*I25","v":0},null,{"$f":"J25*K25","v":0},{"$f":"L25*2","v":0},{"$f":"+M25*$N$18*(1+$N$19)","v":0}]
[null,null,null,null,null,null,null,null,null,0,null,0,0,0]
[null,null,null,null,null,null,null,null,null,{"$f":"IF(H27=0,G27/2,IF(H27>((H27+G27)/2),H27,(G27+H27)/2))*I27","v":0},null,{"$f":"J27*K27","v":0},0,0]
[null,null,null,null,null,null,null,null,null,0,null,0,0,0]
[null,null,null,null,null,null,null,null,null,0,null,0,0,0]
[null,null,null,null,null,null,null,null,null,0,null,0,0,0]
[null,null,null,null,null,null,null,null,null,0,null,0,0,0]
[null,null,null,null,null,null,null,null,null,0,null,0,0,0]
[null,null,null,null,null,null,null,null,null,0,null,0,0,0]
[null,null,null,null,null,null,null,null,null,0,null,0,0,0]
[null,null,null,null,null,null,null,null,null,0,null,0,0,0]
[null,null,null,null,null,null,null,null,null,0,null,0,0,0]
[null,null,null,null,null,null,null,null,null,0,null,0,0,0]
[null,null,null,null,null,null,null,null,null,0,null,0,0,0]
[null,null,null,null,null,null,null,null,null,0,null,0,0,0]
[null,null,null,null,null,null,null,null,null,0,null,0,0,0]
[null,null,null,null,null,null,null,null,null,0,null,0,0,0]
[null,null,null,null,null,null,null,null,null,0,null,0,0,0]
[null,null,null,null,null,null,null,null,null,0,null,0,0,0]
[null,null,null,null,null,null,null,null,null,0,null,0,0,0]
[null,null,"TOTAL MONITORÍAS ACADÉMICAS",null,null,null,null,null,null,null,null,null,null,{"$f":"SUM(N24:N44)","v":0}]

{"sheet":"COMPRA EQUIPO","index":3,"n_rows":55,"n_cols":13,"rows_kept":55,"cut":false,"hidden":false,"merged":[[0,1,0,10],[1,1,1,10],[2,1,2,10],[3,1,3,10],[4,1,4,10],[10,2,10,9],[8,2,8,9],[5,2,5,10],[7,2,7,9],[15,9,17,9],[14,4,17,4],[14,6,17,6],[41,2,41,9],[11,2,11,9],[54,2,54,8],[15,8,17,8],[51,2,51,8],[50,2,50,8],[14,8,14,9],[14,5,17,5],[14,2,17,2],[18,2,18,9],[40,2,40,8],[14,3,17,3],[14,7,17,7]]}
[]
[null,"VICERRECTORÍA ADMINISTRATIVA Y FINANCIERA",null,null,null,null,null,null,null,null,null,null,"Equipo Audiovisual"]
[null,"FORMATO INTERNO DE PRESUPUESTO DE PROYECTOS  Y PROGRAMAS",null,null,null,null,null,null,null,null,null,null,"Equipo de Sistemas"]
[null,{"$f":"+'ITEMS PRESUPUESTO'!B7:J7","v":"VIGENCIA 2020"},null,null,null,null,null,null,null,null,null,null,"Software y bases de datos"]
[null,null,null,null,null,null,null,null,null,null,null,null,"Equipo de Protección"]
[null,null,"PROYECCION COMPRA DE EQUIPOS",null,null,null,null,null,null,null,null,null,"Equipo de Laboratorio"]
[null,null,null,null,null,null,null,null,null,null,null,null,"Otros equipos"]
[null,null,"1. Por favor anexe las cotizaciones como referencia para la compra del equipo solicitado."]
[null,null,"Nota: Diligenciar únicamente los espacios en blanco."]
[null,null,"Definiciones:"]
[null,null,"Adquisición de equipos: Adquisición de bienes tangibles de consumo duradero tales como: equipos de sistemas, equipos de comunicaciones, equipos de laboratorio, ventiladores, entre otros. También se incluye la adquisición de software y bases de datos."]
[null,null,"Muebles y enseres: Recursos destinados a la adquisición de muebles, sillas, mesas, persianas, estanterías, archivadores, páneles y módulos para oficina, entre otros"]
[null,null,null,null,null,null,null,null,null,null,null,null,"Otros equipos"]
[]
[null,null,"TIPO","NOMBRE DEL EQUIPO","ESPECIFICACIONES","MARCA O REFERENCIA","UNIDAD DE MEDIDA","COSTO UNIDAD (Iva Incluido)","AÑO"]
[null,null,null,null,null,null,null,null,"CANTIDAD ","TOTAL"]
[]
[]
[null,null,"ADQUISICIÓN DE EQUIPOS \n(Equipos de sistemas, equipos de comunicaciones, equipos de laboratorio, ventiladores, entre otros. También se incluye la adquisición de software y bases de datos.)"]
[null,null,null,null,null,null,null,null,null,{"$f":"$H20*I20","v":0}]
[null,null,null,null,null,null,null,null,null,{"$f":"$H21*I21","v":0}]
[null,null,null,null,null,null,null,null,null,0]
[null,null,null,null,null,null,null,null,null,0]
[null,null,null,null,null,null,null,null,null,0]
[null,null,null,null,null,null,null,null,null,0]
[null,null,null,null,null,null,null,null,null,0]
[null,null,null,null,null,null,null,null,null,0]
[null,null,null,null,null,null,null,null,null,0]
[null,null,null,null,null,null,null,null,null,0]
[null,null,null,null,null,null,null,null,null,0]
[null,null,null,null,null,null,null,null,null,0]
[null,null,null,null,null,null,null,null,null,0]
[null,null,null,null,null,null,null,null,null,0]
[null,null,null,null,null,null,null,null,null,0]
[null,null,null,null,null,null,null,null,null,0]
[null,null,null,null,null,null,null,null,null,0]
[null,null,null,null,null,null,null,null,null,0]
[null,null,null,null,null,null,null,null,null,0]
[null,null,null,null,null,null,null,null,null,0]
[null,null,null,null,null,null,null,null,null,0]
[null,null,"TOTAL ADQUISICIÓN DE EQUIPOS",null,null,null,null,null,null,{"$f":"SUM(J20:J40)","v":0}]
[null,null,"MUEBLES Y ENSERES\n (Muebles, sillas, mesas, persianas, estanterías, archivadores, páneles y módulos para oficina, entre otros)"]
[null,null,null,null,null,null,null,null,null,{"$f":"$H43*I43","v":0}]
[null,null,null,null,null,null,null,null,null,{"$f":"$H44*I44","v":0}]
[null,null,null,null,null,null,null,null,null,0]
[null,null,null,null,null,null,null,null,null,0]
[null,null,null,null,null,null,null,null,null,0]
[null,null,null,null,null,null,null,null,null,0]
[null,null,null,null,null,null,null,null,null,0]
[null,null,null,null,null,null,null,null,null,0]
[null,null,"TOTAL MUEBLES Y ENSERES",null,null,null,null,null,null,{"$f":"SUM(J43:J50)","v":0}]
[null,null,"TOTAL COMPRA DE EQUIPO",null,null,null,null,null,null,{"$f":"J41+J51","v":0}]
[]
[]
[null,null,"IMPORTANTE: PARA SER INCLUIDAS EN EL PLAN DE COMPRAS DE LA UNIVERSIDAD, LAS SOLICITUDES DEBEN CONTENER TODAS LAS ESPECIFICACIONES REQUERIDAS PARA LA COMPRA ADECUADA DEL EQUIPO."]

{"sheet":"MATERIALES Y SUMINISTROS","index":4,"n_rows":42,"n_cols":10,"rows_kept":42,"cut":false,"hidden":false,"merged":[[26,2,26,9],[31,2,31,9],[41,2,41,8],[35,2,35,8],[19,9,20,9],[18,5,20,5],[18,2,20,2],[18,4,20,4],[18,3,20,3],[40,2,40,8],[18,7,20,7],[19,8,20,8],[18,6,20,6],[30,2,30,8],[36,2,36,9],[25,2,25,8],[18,8,18,9],[21,2,21,9],[0,1,0,10],[1,1,1,10],[2,1,2,10],[3,1,3,10],[4,1,4,10],[16,2,16,9],[12,2,12,9],[5,1,5,10],[13,2,13,9],[14,2,14,9],[15,2,15,9],[7,2,7,9],[10,2,10,9]]}
[]
[]
[null,"VICERRECTORÍA ADMINISTRATIVA Y FINANCIERA","VICERRECTORIA ADMINISTRATIVA"]
[null,"FORMATO INTERNO DE PRESUPUESTO DE PROYECTOS  Y PROGRAMAS","FORMATOS DE PRESUPUESTO"]
[null,{"$f":"+'ITEMS PRESUPUESTO'!B7:J7","v":"VIGENCIA 2020"}]
[]
[]
[null,null,"PROYECCIÓN MATERIALES Y SUMINISTROS"]
[]
[]
[null,null,"Nota: Diligenciar únicamente los espacios en blanco"]
[null,null,"Definiciones:"]
[null,null,"Papelería, Útiles de Escritorio y Oficina: Incluye resmas, carpetas, lapiceros, tóner, cosedoras, reglas, perforadoras, cartulina, papel bond, entre otros"]
[null,null,"Material Académico y  de Laboratorio: Compra de materiales requeridos para el desarrollo de las prácticas académicas de laboratorios e insumos para la prestación de servicios de laboratorios."]
[null,null,"Material de Salud Ocupacional: Elementos de protección requeridos para seguridad y salud en el trabajo y para las prácticas de laboratorio tales como: batas de laboratorio, tapabocas, guantes, tapones para oídos, gafas, gorros, entre otros."]
[null,null,"Otros Materiales y Suministros: Incluye elementos de aseo y cafetería, entre otros"]
[]
[]
[null,null,"ITEM","IDENTIFICACION DEL MATERIAL","ESPECIFICACIONES Y/O TIPO","MARCA O REFERENCIA","UNIDAD DE MEDIDA","COSTO UNIDAD (Iva Incluido)","AÑO"]
[null,null,null,null,null,null,null,null,"CANTIDAD","TOTAL "]
[]
[null,null,"PAPELERÍA, ÚTILES DE ESCRITORIO Y OFICINA\n(Resmas, carpetas, lapiceros, tóner, cosedoras, reglas, perforadoras, cartulina, papel bond, entre otros)"]
[null,null,null,null,null,null,null,null,null,{"$f":"$H23*I23","v":0}]
[null,null,null,null,null,null,null,null,null,{"$f":"$H24*I24","v":0}]
[null,null,null,null,null,null,null,null,null,{"$f":"$H25*I25","v":0}]
[null,null,"TOTAL PAPELERÍA, ÚTILES DE ESCRITORIO Y OFICINA",null,null,null,null,null,null,{"$f":"SUM(J23:J25)","v":0}]
[null,null,"MATERIAL ACADEMICO Y  DE LABORATORIO \n (Materiales requeridos para el desarrollo de las prácticas académicas de laboratorios e insumos para la prestación de servicios de laboratorios)"]
[null,null,null,null,null,null,null,null,null,{"$f":"$H28*I28","v":0}]
[null,null,null,null,null,null,null,null,null,{"$f":"$H29*I29","v":0}]
[null,null,null,null,null,null,null,null,null,{"$f":"$H30*I30","v":0}]
[null,null,"TOTAL MATERIAL ACADEMICO Y  DE LABORATORIO ",null,null,null,null,null,null,{"$f":"SUM(J28:J30)","v":0}]
[null,null,"MATERIAL DE SALUD OCUPACIONAL\n(Elementos de protección requeridos para seguridad y salud en el trabajo y para las prácticas de laboratorio tales como: batas de laboratorio, tapabocas, guantes, tapones para oídos, gafas, gorros, entre otros)"]
[null,null,null,null,null,null,null,null,null,{"$f":"$H33*I33","v":0}]
[null,null,null,null,null,null,null,null,null,{"$f":"$H34*I34","v":0}]
[null,null,null,null,null,null,null,null,null,{"$f":"$H35*I35","v":0}]
[null,null,"TOTAL MATERIAL DE SALUD OCUPACIONAL",null,null,null,null,null,null,{"$f":"SUM(J33:J35)","v":0}]
[null,null,"OTROS MATERIALES Y SUMINISTROS\n(Elementos de aseo y cafetería, entre otros)"]
[null,null,null,null,null,null,null,null,null,{"$f":"$H38*I38","v":0}]
[null,null,null,null,null,null,null,null,null,{"$f":"$H39*I39","v":0}]
[null,null,null,null,null,null,null,null,null,{"$f":"$H40*I40","v":0}]
[null,null,"TOTAL OTROS MATERIALES Y SUMINISTROS",null,null,null,null,null,null,{"$f":"SUM(J38:J40)","v":0}]
[null,null,"TOTAL MATERIALES Y SUMINISTROS",null,null,null,null,null,null,{"$f":"+J26+J31+J36+J41","v":0}]

{"sheet":"MANTENIMIENTO","index":5,"n_rows":45,"n_cols":6,"rows_kept":45,"cut":false,"hidden":false,"merged":[[0,1,0,6],[1,1,1,6],[2,1,2,6],[3,1,3,6],[13,2,13,5],[4,1,4,6],[5,1,5,6],[7,2,7,6],[9,2,9,5],[12,2,12,5],[31,2,32,2],[31,3,32,3],[31,4,31,5],[27,2,27,4],[14,4,14,5],[30,2,30,5],[24,2,24,5],[29,2,29,5],[14,2,15,2],[14,3,15,3],[36,2,36,4],[44,2,44,4],[42,2,42,4],[37,2,37,5],[38,2,38,5],[41,2,41,4]]}
[]
[]
[null,"VICERRECTORÍA ADMINISTRATIVA Y FINANCIERA","VICERRECTORIA ADMINISTRATIVA"]
[null,"FORMATO INTERNO DE PRESUPUESTO DE PROYECTOS Y PROGRAMAS","FORMATOS DE PRESUPUESTO"]
[null,{"$f":"+'ITEMS PRESUPUESTO'!B7:J7","v":"VIGENCIA 2020"}]
[]
[]
[null,null,"PROYECCION MANTENIMIENTO "]
[]
[null,null,"Nota: Diligenciar únicamente los espacios en blanco"]
[]
[]
[null,null,"MANTENIMIENTO DE BIENES MUEBLES, EQUIPOS Y ENSERES"]
[null,null,"Nota: Este cálculo es autómatico y se aplica un porcentaje sobre el valor del equipo comprado"]
[null,null,"DESCRIPCION","%","AÑO"]
[null,null,null,null,"VALOR DEL EQUIPO","TOTAL"]
[null,null,"Equipo Audiovisual",0.1,{"$f":"+SUMIF('COMPRA EQUIPO'!$C$20:$C$40,MANTENIMIENTO!C17,'COMPRA EQUIPO'!$J$20:$J$40)","v":0},{"$f":"D17*E17","v":0}]
[null,null,"Equipo de Sistemas",0.06,{"$f":"+SUMIF('COMPRA EQUIPO'!$C$20:$C$40,MANTENIMIENTO!C18,'COMPRA EQUIPO'!$J$20:$J$40)","v":0},{"$f":"D18*E18","v":0}]
[null,null,"Software y bases de datos",0.03,{"$f":"+SUMIF('COMPRA EQUIPO'!$C$20:$C$40,MANTENIMIENTO!C19,'COMPRA EQUIPO'!$J$20:$J$40)","v":0},0]
[null,null,"Equipo de Protección",0.06,{"$f":"+SUMIF('COMPRA EQUIPO'!$C$20:$C$40,MANTENIMIENTO!C20,'COMPRA EQUIPO'!$J$20:$J$40)","v":0},0]
[null,null,"Equipo de Comunicación",0.1,{"$f":"+SUMIF('COMPRA EQUIPO'!$C$20:$C$40,MANTENIMIENTO!C21,'COMPRA EQUIPO'!$J$20:$J$40)","v":0},0]
[null,null,"Equipo de Laboratorio",0.06,{"$f":"+SUMIF('COMPRA EQUIPO'!$C$20:$C$40,MANTENIMIENTO!C22,'COMPRA EQUIPO'!$J$20:$J$40)","v":0},0]
[null,null,"Muebles y Enseres",0.1,{"$f":"+SUMIF('COMPRA EQUIPO'!$C$20:$C$40,MANTENIMIENTO!C23,'COMPRA EQUIPO'!$J$20:$J$40)","v":0},0]
[null,null,"Otros equipos",0.1,{"$f":"+SUMIF('COMPRA EQUIPO'!$C$20:$C$40,MANTENIMIENTO!C24,'COMPRA EQUIPO'!$J$20:$J$40)","v":0},0]
[null,null,"Otro tipo de mantenimiento: "]
[null,null,null,null,null,{"$f":"D26*E26","v":0}]
[null,null,null,null,null,0]
[null,null,{"$f":"+C13","v":"MANTENIMIENTO DE BIENES MUEBLES, EQUIPOS Y ENSERES"},null,null,{"$f":"SUM(F17:F27)","v":0}]
[]
[null,null,"MANTENIMIENTO DE BIENES INMUEBLES"]
[null,null,"Incluye mantenimiento arbóreo, zonas verdes, infraestructura física, entre otros"]
[null,null,"DESCRIPCION","CANTIDAD","AÑO"]
[null,null,null,null,"VALOR DEL MANTENIMIENTO","TOTAL"]
[null,null,null,null,null,{"$f":"E34*D34","v":0}]
[null,null,null,null,null,{"$f":"D35*$E35","v":0}]
[null,null,null,null,null,{"$f":"D36*$E36","v":0}]
[null,null,"SUBTOTAL DE BIENES INMBUEBLES",null,null,{"$f":"SUM(F34:F36)","v":0}]
[null,null,"SERVICIOS PROGRAMAS EN PREGRADO"]
[null,null,"Servicio de aseo, mantenimiento y vigilancia prorrateo por estudiante"]
[null,null,"DESCRIPCION","FACTOR","VALOR POR ESTUDIANTE","VALOR TOTAL"]
[null,null,"Mantenimiento, aseo y vigilancia por estudiante (0,1578% SMMLV) ",0.1578,{"$f":"+D41*'GASTOS DE PERSONAL'!F25","v":130676.70479999999},{"$f":"E41*(IF(INGRESOS!F21>1,1,0)*((COUNTA(INGRESOS!$F$21:$F$30)/2)*INGRESOS!$F$21)+IF(INGRESOS!F40>1,1,0)*((COUNTA(INGRESOS!$F$40:$F$47)/2)*INGRESOS!$F$40))","v":0}]
[null,null,{"$f":"+C38","v":"SERVICIOS PROGRAMAS EN PREGRADO"},null,null,{"$f":"SUM(F41:F41)","v":0}]
[null,null,"TOTAL MATENIMIENTO DE BIENES INMBUEBLES",null,null,{"$f":"+F37+F42","v":0}]
[]
[null,null,"TOTAL MANTENIMIENTO",null,null,{"$f":"+F28+F43","v":0}]

{"sheet":"SERVICIOS PUBLICOS","index":6,"n_rows":30,"n_cols":8,"rows_kept":30,"cut":false,"hidden":false,"merged":[[0,1,0,6],[1,1,1,6],[7,2,7,5],[5,1,5,6],[2,2,2,5],[3,2,3,5],[4,2,4,5],[29,2,29,4],[23,2,23,5],[24,2,24,5],[27,2,27,4],[21,2,21,4],[12,2,12,5],[13,2,13,5],[14,4,14,5],[14,2,15,2],[14,3,15,3]]}
[]
[null,null,null,null,null,null,null,"Incremento proyectado"]
[null,null,"VICERRECTORÍA ADMINISTRATIVA Y FINANCIERA",null,null,null,null,1.08]
[null,null,"FORMATO INTERNO DE PRESUPUESTO DE PROYECTOS  Y PROGRAMAS"]
[null,null,{"$f":"+'ITEMS PRESUPUESTO'!B7","v":"VIGENCIA 2020"},{"$f":"+'ITEMS PRESUPUESTO'!B7:J7","v":0}]
[]
[]
[null,null,"PROYECCION SERVICIOS PÚBLICOS "]
[null,null,"Nota: Diligenciar únicamente los espacios en blanco"]
[]
[]
[]
[null,null,"SERVICIOS PÚBLICOS"]
[null,null,"Nota:  Este cálculo depende de la cantidad de líneas telefónicas e instalaciones de puntos de red requeridas en el cuadro anterior, sólo se debe diligenciar el número de meses."]
[null,null,"DESCRIPCION","COSTO MES","AÑO"]
[null,null,null,null,"NO. MESES ","TOTAL"]
[null,null,"Teléfono",125000,null,{"$f":"D17*E17","v":0}]
[null,null,"Energía",125000,null,{"$f":"D18*E18","v":0}]
[null,null,"Agua",125000,null,{"$f":"D19*E19","v":0}]
[null,null,"Gas",20000,null,{"$f":"D20*E20","v":0}]
[null,null,"Internet ",25000,null,{"$f":"D21*E21","v":0}]
[null,null,"TOTAL SERVICIOS PUBLICOS",null,null,{"$f":"SUM(F17:F21)","v":0}]
[]
[null,null,"SERVICIOS PROGRAMAS EN PREGRADO"]
[null,null,"Servicios públicos prorrateo por estudiante"]
[null,null,"DESCRIPCIÓN","FACTOR","VALOR POR ESTUDIANTE","VALOR TOTAL"]
[null,null,"Servicios Públicos Prorateo por estudiante",8.7599999999999997E-2,{"$f":"+D27*'GASTOS DE PERSONAL'!$F$25","v":72542.961599999995},{"$f":"E27*(IF(INGRESOS!F21>1,1,0)*((COUNTA(INGRESOS!$F$21:$F$30)/2)*INGRESOS!$F$21)+IF(INGRESOS!F40>1,1,0)*((COUNTA(INGRESOS!$F$40:$F$47)/2)*INGRESOS!$F$40))","v":0}]
[null,null,{"$f":"+C24","v":"SERVICIOS PROGRAMAS EN PREGRADO"},null,null,{"$f":"SUM(F27:F27)","v":0}]
[]
[null,null,"TOTAL SERVICIOS PUBLICOS",null,null,{"$f":"+F22+F28","v":0}]

{"sheet":"ARRENDAMIENTO","index":7,"n_rows":54,"n_cols":9,"rows_kept":54,"cut":false,"hidden":false,"merged":[[12,2,12,6],[0,1,0,7],[1,1,1,7],[2,1,2,7],[3,1,3,7],[4,1,4,7],[6,2,6,6],[13,2,14,2],[13,4,14,4],[13,5,13,6],[13,3,14,3],[46,2,46,6],[36,2,36,5],[38,2,38,6],[39,2,40,2],[39,5,39,6],[44,2,44,5],[33,2,33,5],[47,5,47,6],[39,3,40,3],[39,4,40,4],[51,2,51,5],[53,2,53,5],[47,2,48,2],[47,3,48,3],[47,4,48,4]]}
[null,null,null,null,null,null,null,null,"Incremento proyectado arrendamiento"]
[null,"VICERRECTORÍA ADMINISTRATIVA Y FINANCIERA","VICERRECTORIA ADMINISTRATIVA",null,null,null,null,null,1.08]
[null,"FORMATO INTERNO DE PRESUPUESTO DE PROYECTOS  Y PROGRAMAS","FORMATOS DE PRESUPUESTO"]
[null,{"$f":"+'ITEMS PRESUPUESTO'!B7:J7","v":"VIGENCIA 2020"}]
[]
[]
[null,null,"PROYECCION ARRENDAMIENTO "]
[null,null,"Nota: Diligenciar únicamente los espacios en blanco"]
[]
[null,null,null,null,{"$f":"+'GASTOS DE PERSONAL'!E25","v":"SMMLV 2019:"},{"$f":"+'GASTOS DE PERSONAL'!F25","v":828116}]
[null,null,null,null,"Incremento Proyectado 2020",0.06]
[]
[null,null,"ARRENDAMIENTO DE BIENES INMUEBLES\n(Incluye arrendamiento de espacios, locales, stand, entre otros))"]
[null,null,"DESCRIPCION","UNIDAD DE MEDIDA","COSTO($) VALOR UNIDAD DE MEDIDA","AÑO"]
[null,null,null,null,null,"NO. DE EVENTOS","TOTAL"]
[null,null,"Alquiler salón centro de visitantes (diurno)","2 Horas",{"$f":"0.065*$F$10*(1+$F$11)","v":57057.192400000007},null,{"$f":"+$E16*F16","v":0}]
[null,null,"Alquiler salón centro de visitantes (nocturno)","2 Horas",{"$f":"0.065*$F$10*(1+$F$11)","v":57057.192400000007},null,0]
[null,null,"Alquiler salón centro de visitantes (festivo)","2 Horas",{"$f":"0.085*$F$10*(1+$F$11)","v":74613.251600000003},null,0]
[null,null,"Alquiler Kiosco CDV y Cafetín (diurno)","2 Horas",{"$f":"0.065*$F$10*(1+$F$11)","v":57057.192400000007},null,0]
[null,null,"Alquiler espacios para Proyectos de Investigación","Metro2/mes",{"$f":"0.0065*$F$10*(1+$F$11)","v":5705.7192400000004},null,0]
[null,null,"Alquiler auditorio Jorge Roa  (Jornada Ordinaria)","4 Horas",{"$f":"0.75*($F$10*(1+$F$11))","v":658352.22000000009},null,0]
[null,null,"Alquiler auditorio Medicina  (Jornada Ordinaria)","4 Horas",{"$f":"0.75*($F$10*(1+$F$11))","v":658352.22000000009},null,0]
[null,null,"Alquiler auditorio Mecánica  (Jornada Ordinaria)","4 Horas",{"$f":"0.5*($F$10*(1+$F$11))","v":438901.48000000004},null,0]
[null,null,"Alquiler auditorio A-201  (Jornada Ordinaria)","4 Horas",{"$f":"0.5*($F$10*(1+$F$11))","v":438901.48000000004},null,0]
[null,null,"Sala Magistral Bloque 13","4 Horas",{"$f":"0.5*F10*(1+$F$11)","v":438901.48000000004},null,0]
[null,null,"Alquiler auditorio Jorge Roa  (Domingos y Festivos)","4 Horas",{"$f":"1.15*($F$10*(1+$F$11))","v":1009473.404},null,{"$f":"+$E26*F26","v":0}]
[null,null,"Alquiler auditorio Medicina  (Domingos y Festivos)","4 Horas",{"$f":"1.15*($F$10*(1+$F$11))","v":1009473.404},null,{"$f":"+$E27*F27","v":0}]
[null,null,"Alquiler auditorio Mecánica   (Domingos y Festivos)","4 Horas",{"$f":"0.75*($F$10*(1+$F$11))","v":658352.22000000009},null,{"$f":"+$E28*F28","v":0}]
[null,null,"Alquiler auditorio A-201   (Domingos y Festivos)","4 Horas",{"$f":"0.75*($F$10*(1+$F$11))","v":658352.22000000009},null,{"$f":"+$E29*F29","v":0}]
[null,null,"Alquiler sala de sistemas (20 equipos y Video Beam)","1 Hora",{"$f":"78000*(1+F11)","v":82680},null,0]
[null,null,"Alquiler sala de sistemas (40 equipos y Video Beam)","1 Hora",{"$f":"134400*(1+F11)","v":142464},null,0]
[null,null,"Estudio Grabación Universitaria Estereo sin producción","1 Hora",{"$f":"82100*(1+F11)","v":87026},null,{"$f":"+$E32*F32","v":0}]
[null,null,"Estudio Grabación Universitaria Estereo con producción","1 Hora",{"$f":"107300*(1+F11)","v":113738},null,{"$f":"+$E33*F33","v":0}]
[null,null,"Otro tipo de arrendamiento o alquiler (Incluye arrendamiento de espacios, locales, stand, entre otros)"]
[null,null,null,null,null,null,{"$f":"+$E35*F35","v":0}]
[null,null,null,null,null,null,{"$f":"+$E36*F36","v":0}]
[null,null,"TOTAL ARRENDAMIENTO DE BIENES INMUEBLES",null,null,null,{"$f":"SUM(G16:G36)","v":0}]
[]
[null,null,"ARRENDAMIENTO DE BIENES MUEBLES Y EQUIPOS\n(Incluye arrendamiento de carpas, sillas, mesas, equipos, entre otros)"]
[null,null,"DESCRIPCION","UNIDAD DE MEDIDA","COSTO($) VALOR UNIDAD DE MEDIDA","AÑO"]
[null,null,null,null,null,"CANTIDAD","TOTAL"]
[null,null,null,null,null,null,{"$f":"+$E42*F42","v":0}]
[null,null,null,null,null,null,{"$f":"+$E43*F43","v":0}]
[null,null,null,null,null,null,{"$f":"+$E44*F44","v":0}]
[null,null,"TOTAL ARRENDAMIENTO DE BIENES MUEBLES Y EQUIPOS",null,null,null,{"$f":"SUM(G42:G44)","v":0}]
[]
[null,null,"OTROS ARRENDAMIENTOS\n(Servicio de Almacenamiento en plataforma cloud, entre otros)"]
[null,null,"DESCRIPCION","UNIDAD DE MEDIDA","COSTO($) VALOR UNIDAD DE MEDIDA","AÑO"]
[null,null,null,null,null,"NO. DE EVENTOS","TOTAL"]
[null,null,null,null,null,null,{"$f":"+$E50*F50","v":0}]
[null,null,null,null,null,null,{"$f":"+$E51*F51","v":0}]
[null,null,"TOTAL OTROS ARRENDAMIENTOS",null,null,null,{"$f":"SUM(G50:G51)","v":0}]
[]
[null,null,"TOTAL ARRENDAMIENTO",null,null,null,{"$f":"+G37+G45+G52","v":0}]

{"sheet":"VIATICOS Y GASTOS DE VIAJE","index":8,"n_rows":66,"n_cols":11,"rows_kept":66,"cut":false,"hidden":false,"merged":[[49,2,49,8],[42,2,42,8],[13,2,13,4],[10,2,10,7],[15,2,15,3],[13,6,18,8],[38,7,38,8],[39,7,39,8],[40,3,40,4],[28,2,28,8],[46,4,46,5],[47,4,47,5],[30,3,30,4],[31,3,31,4],[32,3,32,4],[33,3,33,4],[0,1,0,9],[1,1,1,9],[2,1,2,9],[3,1,3,9],[4,1,4,9],[40,7,40,8],[44,4,44,5],[17,2,17,3],[37,7,37,8],[41,7,41,8],[41,2,41,6],[39,3,39,4],[5,1,5,9],[12,2,12,5],[36,2,36,8],[14,2,14,4],[35,2,35,8],[8,1,8,9],[27,2,27,6],[34,2,34,6],[22,2,22,9],[29,2,29,9],[54,2,54,3],[55,7,55,8],[53,7,53,8],[54,7,54,8],[18,2,18,3],[50,2,50,8],[51,7,51,8],[52,7,52,8],[48,2,48,6],[44,7,44,8],[45,7,45,8],[48,7,48,8],[45,4,45,5],[46,7,46,8],[47,7,47,8],[43,2,43,8],[55,2,55,6],[57,7,57,8],[37,5,37,6],[37,3,37,4],[38,5,38,6],[39,5,39,6],[40,5,40,6],[38,3,38,4],[51,2,51,3],[51,4,51,5],[52,4,52,5],[53,4,53,5],[54,4,54,5],[57,2,57,6],[52,2,52,3],[53,2,53,3]]}
[]
[null,null,null,null,null,null,null,null,null,null,"Incremento proyectado "]
[null,"VICERRECTORÍA ADMINISTRATIVA Y FINANCIERA",null,null,null,null,null,null,null,null,1.1100000000000001]
[null,"FORMATO INTERNO DE PRESUPUESTO DE PROYECTOS  Y PROGRAMAS"]
[null,{"$f":"+'ITEMS PRESUPUESTO'!B7:J7","v":"VIGENCIA 2020"}]
[]
[]
[]
[null,"PROYECCIÓN VIÁTICOS Y GASTOS DE VIAJE"]
[]
[null,null,"Nota: Diligenciar únicamente los espacios en blanco"]
[]
[]
[null,null,"TABLA DE AYUDA ",null,null,null,"Notas:\n1. Los valores de los tiquetes varían de acuerdo al destino y a la fecha de solicitud.\n2. El valor de los viáticos varía de acuerdo al destino y cargo del funcionario."]
[null,null," VALORES PROMEDIO PASAJES Y VIÁTICOS"]
[null,null,"Costo Pasaje Nacional",null,700000]
[null,null,"Costo Viático Nacional  por dia",null,220000]
[null,null,"Costo Pasaje Internacional",null,3000000]
[null,null,"Costo Viático Internacional  por dia",null,820000]
[]
[null,null,"Ver Lineamientos en el siguiente Link: ",null,"http://www.utp.edu.co/vicerrectoria/administrativa/comisiones-de-servicio.html"]
[]
[null,null,"COMISIONES DE SERVICIO Y APOYOS ECONÓMICOS NACIONALES\n(Incluye todos los gastos relacionados con las comisiones de tipo GESTIÓN ADMINISTRATIVA y apoyos económicos nacionales establecidos en la Resolución No. 1334 del 20/04/2016)"]
[null,null,"No. personas","Objeto","Personal","No. pasajes nacionales por persona","Duración nacional (no. dias) por persona","Valor total pasajes nacionales","Valor total viáticos nacionales","TOTAL"]
[null,null,null,null,"Interno",null,null,{"$f":"F25*$E$16*C25","v":0},{"$f":"G25*$E$17*C25","v":0},{"$f":"+H25+I25","v":0}]
[null,null,null,null,null,null,null,{"$f":"F26*$E$16*C26","v":0},{"$f":"G26*$E$17*C26","v":0},{"$f":"+H26+I26","v":0}]
[null,null,null,null,null,null,null,{"$f":"F27*$E$16*C27","v":0},{"$f":"G27*$E$17*C27","v":0},0]
[null,null,"TOTAL COMISIONES DE SERVICIO Y APOYOS ECONÓMICOS NACIONALES",null,null,null,null,{"$f":"SUM(H25:H27)","v":0},{"$f":"SUM(I25:I27)","v":0},{"$f":"+SUM(J25:J27)","v":0}]
[]
[null,null,"COMISIONES DE SERVICIO Y APOYOS ECONÓMICOS INTERNACIONALES\n(Incluye todos los gastos relacionados con las comisiones de tipo GESTIÓN ADMINISTRATIVA y apoyos económicos internacionales establecidos en la Resolución No. 1334 del 20/04/2016.)"]
[null,null,"No. personas","Objeto",null,"No. pasajes internacionales por persona","Duración internacional (no. dias) por persona","Valor total pasajes internacionales","Valor total viáticos internacionales","TOTAL"]
[null,null,null,null,null,null,null,{"$f":"F32*$E$18*C32","v":0},{"$f":"G32*$E$17*C32","v":0},{"$f":"+H32+I32","v":0}]
[null,null,null,null,null,null,null,{"$f":"F33*$E$18*C33","v":0},{"$f":"G33*$E$17*C33","v":0},{"$f":"+H33+I33","v":0}]
[null,null,null,null,null,null,null,{"$f":"F34*$E$18*C34","v":0},{"$f":"G34*$E$17*C34","v":0},0]
[null,null,"TOTAL COMISIÓN INTERNACIONAL",null,null,null,null,{"$f":"SUM(H32:H34)","v":0},{"$f":"SUM(I32:I34)","v":0},{"$f":"+SUM(J32:J34)","v":0}]
[]
[null,null,"APOYO ECONÓMICO ESTUDIANTE\n(Incluye los apoyos económicos que se otorgan a los estudiantes para participar en ponencias, congresos, pasantías, actividades culturales y deportivas, entre otros.)"]
[null,null,"No. estudiantes","Objeto/Justificación",null,"Valor del apoyo",null,"Valor total"]
[null,null,null,null,null,null,null,{"$f":"+C39*F39","v":0}]
[null,null,null,null,null,null,null,{"$f":"+C40*F40","v":0}]
[null,null,null,null,null,null,null,{"$f":"+C41*F41","v":0}]
[null,null,"TOTAL APOYO ECONÓMICO ESTUDIANTE",null,null,null,null,{"$f":"SUM(H39:I41)","v":0}]
[]
[null,null,"VISITAS ACADÉMICAS Y SALIDAS DE CAMPO\n(Incluye los apoyos que se dan a los estudiantes para las visitas académicas y salidas de campo dentro de las actividades contempladas en los planes de estudios. \nSe incluyen las salidas de campo aprobadas en los proyectos de Colciencias.)"]
[null,null,"No. estudiantes","Objeto/Justificación","Asignatura",null,"Valor del apoyo","Valor total"]
[null,null,null,null,null,null,null,{"$f":"G46*C46","v":0}]
[null,null,null,null,null,null,null,{"$f":"G47*C47","v":0}]
[null,null,null,null,null,null,null,0]
[null,null,"TOTAL VISITAS ACADÉMICAS Y SALIDAS DE CAMPO",null,null,null,null,{"$f":"SUM(H46:I48)","v":0}]
[]
[null,null,"HOSPEDAJE\n(Contratación de servicio de hospedaje)"]
[null,null,"Descripción",null,"Valor del servicio",null,"No. de servicios","Valor total"]
[null,null,null,null,null,null,null,{"$f":"+E53*G53","v":0}]
[null,null,null,null,null,null,null,{"$f":"+E54*G54","v":0}]
[null,null,null,null,null,null,null,{"$f":"+E55*G55","v":0}]
[null,null,"TOTAL HOSPEDAJE",null,null,null,null,{"$f":"SUM(H53:I55)","v":0}]
[]
[null,null,"TOTAL VIÁTICOS Y GASTOS DE VIAJE",null,null,null,null,{"$f":"+J28+J35+H42+H49+H56","v":0}]
[]
[]
[]
[]
[]
[]
[null,null,null,null,"Interno"]
[null,null,null,null,"Externo"]

{"sheet":"IMPRESOS Y PUBLICACIONES","index":9,"n_rows":89,"n_cols":7,"rows_kept":89,"cut":false,"hidden":false,"merged":[[88,2,88,5],[6,2,6,6],[82,2,83,2],[82,3,83,3],[82,4,83,4],[82,5,82,6],[10,2,11,2],[72,2,72,5],[66,2,66,5],[9,2,9,6],[8,2,8,6],[74,2,74,6],[75,2,76,2],[75,4,76,4],[75,5,75,6],[10,4,11,4],[64,3,65,3],[10,5,10,6],[27,2,27,5],[39,2,39,5],[42,3,43,3],[42,4,43,4],[42,5,42,6],[64,2,65,2],[1,2,1,6],[2,2,2,6],[3,2,3,6],[4,2,4,6],[41,2,41,6],[10,3,11,3],[16,2,16,5],[22,2,22,5],[81,2,81,6],[86,2,86,5],[25,2,26,2],[44,2,44,5],[24,2,24,6],[64,4,65,4],[64,5,64,6],[63,2,63,6],[67,2,69,2],[61,2,61,5],[79,2,79,5],[75,3,76,3],[25,3,26,3],[25,4,26,4],[25,5,25,6],[42,2,43,2]]}
[]
[null,null,"VICERRECTORIA ADMINISTRATIVA"]
[null,null,"FORMATO INTERNO DE PRESUPUESTO DE PROYECTOS  Y PROGRAMAS"]
[null,null,{"$f":"+'ITEMS PRESUPUESTO'!B7","v":"VIGENCIA 2020"}]
[]
[]
[null,null,"PROYECCIÓN IMPRESOS Y PUBLICACIONES"]
[null,null,"Nota: Dilgenciar únicamente los espacios en blanco."]
[null,null,"Nota (*): Los valores correspondientes a diseños varian de acuerdo al número de páginas, tintas, fotografías, redibujo de elementos, tamaño. El diseño no incluye la impresión."]
[null,null,"PAUTAS EN RADIO, PERIÓDICO Y TELEVISIÓN"]
[null,null,"DESCRIPCION","UNIDAD DE MEDIDA","COSTO ($) (VALOR/UNIDAD DE MEDIDA)","AÑO"]
[null,null,null,null,null,"CANTIDAD ","TOTAL ($)"]
[null,null,"Avisos periodico El Tiempo- (Página Corriente) ","5 cm * 10 cm (2 Columnas) ",577150,null,{"$f":"+$E13*F13","v":0}]
[null,null,"Avisos periodico El Diario (Página Corriente) ","5 cm * 10 cm (2 Columnas) ",571000,null,{"$f":"+$E14*F14","v":0}]
[null,null,"Avisos Licitaciones ","5 cm *2 Columnas ",371000,null,{"$f":"+$E15*F15","v":0}]
[null,null,"Otro:",null,null,null,{"$f":"+$E16*F16","v":0}]
[null,null,"SERVICIOS OFRECIDOS POR LA EMISORA UTP (Código 511-4-131-04)"]
[null,null,"Paquete Pautas radiales de 20 segundos","4 cuñas diarias por 3 meses",1447600,null,{"$f":"+$E18*F18","v":0}]
[null,null,"Paquete Pautas radiales de 20 segundos","8 cuñas diarias por 1 mes",878900,null,0]
[null,null,"Paquete Pautas radiales de 30 segundos","8 cuñas diarias por 3 meses",930600,null,0]
[null,null,"Patrocinio de programas - Universitaria Stereo","1/2 Hora por 1 mes",361900,null,0]
[null,null,"Otro:",null,null,null,0]
[null,null,"TOTAL PAUTAS EN RADIO, PERIÓDICO Y TELEVISIÓN",null,null,null,{"$f":"SUM(G13:G22)","v":0}]
[]
[null,null,"PRODUCCIÓN AUDIOVISUAL Y DESARROLLO WEB (VIDEOS, FILMACIONES, CUBRIMIENTOS, PAGINAS WEB)"]
[null,null,"DESCRIPCION","UNIDAD DE MEDIDA","COSTO ($) (VALOR/UNIDAD DE MEDIDA)","AÑO"]
[null,null,null,null,null,"CANTIDAD ","TOTAL ($)"]
[null,null,"SERVICIOS OFRECIDOS POR EL CRIE (Código 511-22-131-68)"]
[null,null,"Blogs UTP (configuraciones especiales basicas) Publicación, hosting, capacitación y soporte 1 año","UN",2738000,null,{"$f":"+$E29*F29","v":0}]
[null,null,"Hosting página UTP","1 Año",766400,null,0]
[null,null,"Filmación en formato HD por cámara","8 horas",437800,null,0]
[null,null,"Servicio de Videoconferencia","4 horas",383700,null,0]
[null,null,"Transmisión en directo (Puesto fijo a  2 cámaras) ","8 horas",1970500,null,0]
[null,null,"Video (institucional o comercial) 1.0 minuto editado","UN ",1095000,null,0]
[null,null,"Diseño Revista Electrónica",null,6077000,null,0]
[null,null,"Diseño de página Web  • Actualizables intermedia",null,4599300,null,0]
[null,null,"Edición no lineal","8 horas",492900,null,0]
[null,null,"Otro:",null,null,null,0]
[null,null,null,null,null,null,0]
[null,null,"TOTAL PRODUCCIÓN AUDIOVISUAL Y DESARROLLO WEB ",null,null,null,{"$f":"SUM(G29:G39)","v":0}]
[]
[null,null,"EDICIÓN DE LIBROS, REVISTAS, ESCRITOS Y TRABAJOS TIPOGRÁFICOS (DISEÑO E IMPRESIÓN)"]
[null,null,"DESCRIPCION","UNIDAD DE MEDIDA","COSTO ($) (VALOR/UNIDAD DE MEDIDA)","AÑO"]
[null,null,null,null,null,"CANTIDAD ","TOTAL ($)"]
[null,null,"SERVICIOS OFRECIDOS POR EL CRIE(Código 511-22-131-68)"]
[null,null,"Diseño Plegables ","(4*4)",374300,null,{"$f":"+$E46*F46","v":0}]
[null,null,"Diseño Afiches ","(4*0)",374300,null,0]
[null,null,"Diseño y diagramación de libros",null,2371000,null,0]
[null,null,"Diseño volantes ","(4*1)",182000,null,0]
[null,null,"Diseño logo",null,592500,null,0]
[null,null,"Diseño Pendones",null,320500,null,0]
[null,null,"Diseño Escarapelas, certificados, tarjetas",null,58900,null,0]
[null,null,"Diseño Portada Libros",null,374300,null,0]
[null,null,"Diseño Portada ","CD y Labels",58900,null,0]
[null,null,"Impresión de Certificados (Papel Kimberly 180 gr)","(Unidad - Tamaño carta)",1000,null,0]
[null,null,"Impresión de Plegables (Papel Kimberly 90 gr)","(Unidad)",1000,null,0]
[null,null,"Impresión de Afiches (Papel Bondo 75 gr)","(Unidad - Tamaño Doble Carta)",1000,null,0]
[null,null,"Impresión de Volantes (Papel Periódico)","(Unidad)",1000,null,0]
[null,null,"Otros:",null,null,null,0]
[null,null,null,null,null,null,0]
[null,null,null,null,null,null,0]
[null,null,"TOTAL EDICIÓN DE LIBROS, REVISTAS, ESCRITOS Y TRABAJOS TIPOGRÁFICOS",null,null,null,{"$f":"SUM(G46:G61)","v":0}]
[]
[null,null,"PROMOCIÓN Y DIFUSIÓN VIRTUAL"]
[null,null,"DESCRIPCION","UNIDAD DE MEDIDA","COSTO ($) (VALOR/UNIDAD DE MEDIDA)","AÑO"]
[null,null,null,null,null,"CANTIDAD ","TOTAL ($)"]
[null,null,"SERVICIOS OFRECIDOS POR UNIVIRTUAL (Código 511-21-131-57)"]
[null,null,"Servicio de promoción para Programas Académicos de Pregrado y Posgrado, diplomados, seminarios y cursos de extensión, entre otros.","Proceso de inscripción electrónica personalizada",2585000,null,{"$f":"+$E68*F68","v":0}]
[null,null,null,"Diseño y ejecución de estrategia de telemercadeo",2585000,null,{"$f":"+$E69*F69","v":0}]
[null,null,null,"Diseño y ejecución de estrategia Email Marketing",4136000,null,{"$f":"+$E70*F70","v":0}]
[null,null,"Otro tipo de Divulgación",null,0,null,{"$f":"+$E71*F71","v":0}]
[]
[null,null,{"$f":"+C64","v":"PROMOCIÓN Y DIFUSIÓN VIRTUAL"},null,null,null,{"$f":"SUM(G68:G71)","v":0}]
[]
[null,null,"FOTOCOPIAS"]
[null,null,"DESCRIPCION","UNIDAD DE MEDIDA","COSTO ($) (VALOR/UNIDAD DE MEDIDA)","AÑO"]
[null,null,null,null,null,"CANTIDAD ","TOTAL"]
[null,null,"Fotocopias (Papel Bond 75 gr)","(Unidad - Tamaño carta)",100,null,{"$f":"+$E78*F78","v":0}]
[null,null,"Fotocopias (Papel Bond 75 gr)","(Unidad - Tamaño oficio)",200,null,{"$f":"+$E79*F79","v":0}]
[null,null,{"$f":"+C75","v":"FOTOCOPIAS"},null,null,null,{"$f":"SUM(G78:G79)","v":0}]
[]
[null,null,"OTROS IMPRESOS Y PUBLICACIONES\n(Incluye publicación de artículos, gastos relacionados con la asignación de códigos ISBN, entre otros"]
[null,null,"DESCRIPCION","UNIDAD DE MEDIDA","COSTO ($) (VALOR/UNIDAD DE MEDIDA)","AÑO"]
[null,null,null,null,null,"CANTIDAD ","TOTAL ($)"]
[null,null,null,null,null,null,{"$f":"+$E85*F85","v":0}]
[null,null,null,null,null,null,{"$f":"+$E86*F86","v":0}]
[null,null,"TOTAL OTROS IMPRESOS Y PUBLICACIONES",null,null,null,{"$f":"SUM(G85:G86)","v":0}]
[]
[null,null,"TOTAL IMPRESOS Y PUBLICACIONES",null,null,null,{"$f":"+G23+G40+G62+G73+G87+G80","v":0}]

{"sheet":"LIBROS Y REVISTAS","index":10,"n_rows":34,"n_cols":22,"rows_kept":34,"cut":false,"hidden":false,"merged":[[33,2,33,17],[19,2,19,17],[12,3,13,3],[12,4,13,4],[12,5,13,5],[12,7,13,7],[12,6,13,6],[12,9,13,9],[12,8,13,8],[22,2,23,2],[27,11,27,12],[22,3,22,4],[22,10,23,10],[21,2,21,18],[22,13,23,15],[24,11,24,12],[0,1,0,19],[1,1,1,19],[2,1,2,19],[7,1,7,19],[12,10,13,10],[11,2,11,18],[12,16,13,16],[12,2,13,2],[12,17,12,18],[9,1,9,19],[3,1,3,19],[5,1,5,19],[6,1,6,19],[12,11,12,12],[12,13,12,15],[22,8,23,9],[22,5,23,7],[22,16,23,16],[22,17,22,18],[26,5,26,7],[25,11,25,12],[26,11,26,12],[22,11,23,12],[25,8,25,9],[26,8,26,9],[28,11,28,12],[31,2,31,17],[29,2,29,17],[24,13,24,15],[25,13,25,15],[26,13,26,15],[27,13,27,15],[28,5,28,7],[28,13,28,15],[24,8,24,9],[27,8,27,9],[28,8,28,9],[24,5,24,7],[25,5,25,7],[27,5,27,7]]}
[]
[null,"VICERRECTORÍA ADMINISTRATIVA Y FINANCIERA","VICERRECTORIA ADMINISTRATIVA"]
[null,"FORMATO INTERNO DE PRESUPUESTO DE PROYECTOS  Y PROGRAMAS","FORMATOS DE PRESUPUESTO"]
[null,{"$f":"+'ITEMS PRESUPUESTO'!B7:J7","v":"VIGENCIA 2020"}]
[]
[]
[]
[null,"PROYECCIÓN IMPRESOS Y PUBLICACIONES"]
[null,null,"Nota: Dilgenciar únicamente los espacios en blanco"]
[]
[]
[null,null,"  LIBROS "]
[null,null,"ASIGNATURA","NOMBRE DE QUIEN SOLICITA","TITULO","AUTOR","EDICION","AÑO","EDITORIAL","ISBN","TIPO                                                  (Libro, Video, CD-ROOM)","PROCEDENCIA",null,"BIBLIOGRAFIA",null,null,"COSTO UNITARIO","AÑO 1",null,null,null,"TOTAL"]
[null,null,null,null,null,null,null,null,null,null,null,"NACIONAL","INTERNACIONAL","BASICA","APOYO","RECOMENDADO",null,"CANTIDAD ","TOTAL",null,null,"AÑO 5"]
[null,null,null,null,null,null,null,null,null,null,null,null,null,null,null,null,null,null,{"$f":"$R15*Q15","v":0}]
[null,null,null,null,null,null,null,null,null,null,null,null,null,null,null,null,null,null,{"$f":"$R16*Q16","v":0}]
[null,null,null,null,null,null,null,null,null,null,null,null,null,null,null,null,null,null,{"$f":"$R17*Q17","v":0}]
[null,null,null,null,null,null,null,null,null,null,null,null,null,null,null,null,null,null,{"$f":"$R18*Q18","v":0}]
[null,null,null,null,null,null,null,null,null,null,null,null,null,null,null,null,null,null,{"$f":"$R19*Q19","v":0}]
[null,null,"TOTAL LIBROS",null,null,null,null,null,null,null,null,null,null,null,null,null,null,null,{"$f":"SUM(S15:S19)","v":0},null,null,{"$f":"SUM(#REF!)","v":{"$error":"#REF!"}}]
[]
[null,null,"REVISTAS Y SUSCRIPCIONES\n(Inlcuye la adquisición de libros, revistas, suscripciones a bases de datos bibliográficas)"]
[null,null,"NOMBRE DE QUIEN SOLICITA","PROCEDENCIA",null,"TITULO",null,null,"EDITOR",null,"ISSN","PERIODICIDAD",null,"FORMATO  (Impreso, Línea)",null,null,"COSTO SUSCRIPCION INSTITUCIONAL","AÑO"]
[null,null,null,"NACIONAL","INTERNACIONAL",null,null,null,null,null,null,null,null,null,null,null,null,"CANTIDAD ","TOTAL"]
[null,null,null,null,null,null,null,null,null,null,null,null,null,null,null,null,null,null,{"$f":"$Q25*R25","v":0}]
[null,null,null,null,null,null,null,null,null,null,null,null,null,null,null,null,null,null,{"$f":"$Q26*R26","v":0}]
[null,null,null,null,null,null,null,null,null,null,null,null,null,null,null,null,null,null,{"$f":"$Q27*R27","v":0}]
[null,null,null,null,null,null,null,null,null,null,null,null,null,null,null,null,null,null,{"$f":"$Q28*R28","v":0}]
[null,null,null,null,null,null,null,null,null,null,null,null,null,null,null,null,null,null,{"$f":"$Q29*R29","v":0}]
[null,null,"TOTAL REVISTAS",null,null,null,null,null,null,null,null,null,null,null,null,null,null,null,{"$f":"SUM(S25:S29)","v":0}]
[]
[null,null,"TOTAL ADQUISICIÓN DE LIBROS, REVISTAS Y SUSCRIPCIONES",null,null,null,null,null,null,null,null,null,null,null,null,null,null,null,{"$f":"+S20+S30","v":0}]
[]
[null,null,"Nota: las solicitudes anteriores, corresponden al desarrollo del proyecto y no generan compromisos a la Universidad para su renovación."]

{"sheet":"COMUNICACION Y TRANSPORTE","index":11,"n_rows":29,"n_cols":10,"rows_kept":29,"cut":false,"hidden":false,"merged":[[9,5,9,6],[9,2,10,2],[9,4,10,4],[2,1,2,7],[3,1,3,7],[4,1,4,7],[7,2,7,6],[9,3,10,3],[28,2,28,5],[20,4,21,4],[20,5,20,6],[26,2,26,5],[15,2,15,5],[20,2,21,3],[22,2,22,3],[24,2,24,3],[25,2,25,3],[17,2,17,6]]}
[]
[]
[null,"VICERRECTORÍA ADMINISTRATIVA Y FINANCIERA"]
[null,"FORMATO INTERNO DE PRESUPUESTO DE PROYECTOS  Y PROGRAMAS"]
[null,{"$f":"+'ITEMS PRESUPUESTO'!B7:J7","v":"VIGENCIA 2020"}]
[]
[null,null,null,null,null,null,null,null,null,"Incremento proyectado"]
[null,null,"PROYECCION COMUNICACIÓN Y TRANSPORTE ",null,null,null,null,null,null,1.07]
[]
[null,null,"ITEM","DESCRIPCIÓN","COSTO UNITARIO","AÑO"]
[null,null,null,null,null,"CANTIDAD ","TOTAL"]
[null,null,"Fletes y Acarreos","Incluye el servicio de transporte de carga, equipos, mercancía, muestras, entre otros.",250000,null,{"$f":"+$E12*F12","v":0}]
[null,null,"Transporte","Contratación del servicio de transporte de pasajeros.",200000,null,{"$f":"+$E13*F13","v":0}]
[null,null,"Otros Comunicación y Transporte","Incluye el envío de correspondencia, entre otros",0,null,{"$f":"+$E14*F14","v":0}]
[null,null,null,null,null,null,{"$f":"+$E15*F15","v":0}]
[null,null,"TOTAL PROYECCION COMUNICACIÓN Y TRANSPORTE",null,null,null,{"$f":"SUM(G12:G15)","v":0}]
[]
[null,null,"Nota: Los valores unitarios son proyectados, se requiere realizar las cotizaciones respectivas para establecer valores definitivos."]
[]
[null,null,"SERVICIOS DE RED"]
[null,null,"DESCRIPCION",null,"COSTO UNIDAD","AÑO"]
[null,null,null,null,null,"CANTIDAD ","TOTAL"]
[null,null,"Requerimiento de lineas telefónicas",null,100000,null,{"$f":"F23*$E23","v":0}]
[null,null,"Instalación punto de red",null,280000,null,{"$f":"F24*$E24","v":0}]
[null,null,"Instalación punto eléctrico doble",null,60000,null,{"$f":"F25*$E25","v":0}]
[null,null,"Otros ",null,null,null,{"$f":"F26*$E26","v":0}]
[null,null,"TOTAL OTROS SERVICIOS DE RED",null,null,null,{"$f":"SUM(G23:G26)","v":0}]
[]
[null,null,"TOTAL COMUNICACIÓN Y TRANSPORTE ",null,null,null,{"$f":"+G16+G27","v":0}]

{"sheet":"SEGUROS","index":12,"n_rows":34,"n_cols":6,"rows_kept":34,"cut":false,"hidden":false,"merged":[[33,2,33,4],[0,1,0,6],[1,2,1,6],[2,2,2,6],[3,2,3,6],[4,2,4,6],[5,1,5,6],[22,2,22,5],[7,2,7,5],[9,2,9,5],[12,2,12,5],[13,2,13,5],[14,2,14,5],[23,2,23,5],[24,2,25,2],[24,3,25,3],[24,4,24,5],[31,2,31,4],[15,2,15,5],[16,2,17,2],[16,3,17,3],[16,4,16,5],[20,2,20,4]]}
[]
[]
[null,null,"VICERRECTORÍA ADMINISTRATIVA Y FINANCIERA"]
[null,null,"FORMATO INTERNO DE PRESUPUESTO DE PROYECTOS Y PROGRAMAS"]
[null,null,{"$f":"+'ITEMS PRESUPUESTO'!B7","v":"VIGENCIA 2020"}]
[]
[]
[null,null,"PROYECCIÓN DE SEGUROS"]
[]
[null,null,"Nota: Diligenciar únicamente los espacios en blanco"]
[]
[]
[null,null,"SEGUROS PARA COMPRA DE EQUIPO"]
[null,null,"Nota: Este cálculo es automático y se cobra un porcentaje sobre el valor del equipo comprado"]
[null,null,"Multiriesgo: Este seguro se calcula sobre el valor total de los equipos comprados"]
[null,null,"Incendio y rotura de maquinaria: Este seguro se calcula sobre el valor total de los Muebles y Enseres"]
[null,null,"IDENTIFICACION DEL SEGURO","%","AÑO"]
[null,null,null,null,"VALOR DEL EQUIPO","TOTAL"]
[null,null,"Multiriesgo",0.06,{"$f":"'COMPRA EQUIPO'!J41","v":0},{"$f":"E19*D19*5","v":0}]
[null,null,"Incendio y rotura maquinaria",0.02,{"$f":"+'COMPRA EQUIPO'!J52","v":0},{"$f":"E20*D20*5","v":0}]
[null,null,"TOTAL SEGUROS PARA COMPRA DE EQUIPO",null,null,{"$f":"SUM(F19:F20)","v":0}]
[]
[null,null,"PÓLIZAS"]
[null,null,"Nota: Este tipo de seguros se calcula sobre el valot total del convenio o contrato y el porcentaje depende del estipulado en el mismo; por lo tanto puede variar"]
[null,null,"IDENTIFICACION DEL SEGURO","%","AÑO"]
[null,null,null,null,"VALOR DEL CONVENIO","TOTAL"]
[null,null,"Póliza de Cumplimiento",3.0000000000000001E-3,null,{"$f":"E27*$D27","v":0}]
[null,null,"Póliza Manejo de Anticipo",3.0000000000000001E-3,null,{"$f":"E28*$D28","v":0}]
[null,null,"Póliza Prestaciones Sociales",3.0000000000000001E-3,null,{"$f":"E29*$D29","v":0}]
[null,null,"Póliza Seriedad de la Propuesta",3.0000000000000001E-3,null,{"$f":"E30*$D30","v":0}]
[null,null,"Otro"]
[null,null,"VALOR DE LA PRIMA",null,null,{"$f":"SUM(F27:F31)","v":0}]
[]
[null,null,"TOTAL PÓLIZAS",null,null,{"$f":"+F21+F32","v":0}]

{"sheet":"CAPACITACION","index":13,"n_rows":51,"n_cols":13,"rows_kept":51,"cut":false,"hidden":false,"merged":[[41,10,42,10],[19,4,19,9],[38,2,38,9],[23,2,23,10],[40,2,40,10],[24,8,25,8],[24,9,25,9],[24,10,25,10],[32,2,32,10],[31,2,31,9],[24,3,25,3],[24,4,25,4],[24,5,25,5],[0,1,0,11],[1,1,1,11],[2,1,2,11],[3,1,3,11],[4,1,4,11],[5,1,5,11],[7,1,7,11],[16,2,16,4],[17,2,17,4],[21,2,21,10],[14,2,14,4],[15,2,15,4],[13,2,13,5],[12,2,12,5],[18,2,18,9],[24,6,25,6],[24,7,25,7],[36,2,36,6],[37,2,37,9],[50,2,50,9],[41,3,42,3],[41,4,42,4],[41,5,42,5],[48,2,48,9],[41,6,42,6],[41,7,42,7],[41,8,42,8],[41,9,42,9],[33,2,33,6],[34,2,34,6],[35,2,35,6]]}
[]
[]
[null,"VICERRECTORÍA ADMINISTRATIVA Y FINANCIERA","VICERRECTORIA ADMINISTRATIVA"]
[null,"FORMATO INTERNO DE PRESUPUESTO DE PROYECTOS  Y PROGRAMAS",null,null,null,null,null,null,null,null,null,null,"Incremento proyectado"]
[null,{"$f":"+'ITEMS PRESUPUESTO'!B7","v":"VIGENCIA 2020"},null,null,null,null,null,null,null,null,null,null,1.1000000000000001]
[]
[]
[null,"PROYECCIÓN CAPACITACIÓN"]
[null,null,"Nota: Diligenciar únicamente los espacios en blanco"]
[]
[]
[]
[null,null,"TABLA DE AYUDA "]
[null,null," VALORES PROMEDIO PASAJES Y VIÁTICOS"]
[null,null,"Costo Pasaje Nacional",null,null,700000,"Nota: Los valores de los tiquetes varían de acuerdo al destino y a la fecha de solicitud."]
[null,null,"Costo Viático Nacional  por dia",null,null,220000]
[null,null,"Costo Pasaje Internacional",null,null,3000000,"Nota: El valor de los viáticos varía de acuerdo al destino y cargo del funcionario."]
[null,null,"Costo Viático Internacional  por dia",null,null,820000]
[]
[null,null,"Ver Lineamientos en el siguiente Link: ",null,"http://www.utp.edu.co/vicerrectoria/administrativa/comisiones-de-servicio.html"]
[]
[null,null,"CAPACITACIÓN"]
[]
[null,null,"CAPACITACIÓN NACIONAL\nPor este rubro se afectan todos los gastos relacionados con las comisiones de tipo FORMACIÓN Nacional que realicen los funcionarios o colaboradores de la Universidad, incluye los viáticos, pasajes, inscripción y matrícula."]
[null,null,"TIPO","NO. PERSONAS","DURACIÓN NACIONAL (NO. DIAS) POR PERSONA","VALOR INSCRIPCIÓN MATRICULA NACIONAL POR PERSONA","NO. PASAJES NACIONALES POR PERSONA","VALOR TOTAL INSCRIPCIÓN MATRICULAS NACIONALES","VALOR TOTAL PASAJES NACIONALES","VALOR TOTAL VIATICOS NACIONALES","TOTAL"]
[null,null,"Seminario, Taller, Simposio, otros"]
[null,null,null,null,null,null,null,{"$f":"D27*F27","v":0},{"$f":"D27*G27*$F$15","v":0},{"$f":"D27*E27*$F$16","v":0},{"$f":"SUM(H27:J27)","v":0}]
[null,null,null,null,null,null,null,{"$f":"D28*F28","v":0},{"$f":"D28*G28*$F$15","v":0},{"$f":"D28*E28*$F$16","v":0},{"$f":"SUM(H28:J28)","v":0}]
[null,null,null,null,null,null,null,{"$f":"D29*F29","v":0},{"$f":"D29*G29*$F$15","v":0},{"$f":"D29*E29*$F$16","v":0},{"$f":"SUM(H29:J29)","v":0}]
[null,null,null,null,null,null,null,{"$f":"D30*F30","v":0},{"$f":"D30*G30*$F$15","v":0},{"$f":"D30*E30*$F$16","v":0},{"$f":"SUM(H30:J30)","v":0}]
[null,null,null,null,null,null,null,{"$f":"D31*F31","v":0},{"$f":"D31*G31*$F$15","v":0},{"$f":"D31*E31*$F$16","v":0},{"$f":"SUM(H31:J31)","v":0}]
[null,null,"SUBTOTAL",null,null,null,null,null,null,null,{"$f":"SUM(K27:K31)","v":0}]
[null,null,"FORMACIÓN EN EL CAMPUS O POR CONVENIOS Y CONTRATOS \n(Gastos de capacitación en el marco de convenios o contratos tales como honorarios del facilitador, transporte y alojamiento en caso de requerirse. Gastos relacionados con la contratación de facilitadores para el desarrollo de capacitaciones al interior de la Universidad de acuerdo con las políticas de capacitación)"]
[null,null,"DESCRIPCIÓN/ OBJETO",null,null,null,null,"HONORARIOS FACILITADOR","TRANSPORTE","ALOJAMIENTO","TOTAL"]
[null,null,null,null,null,null,null,null,null,null,{"$f":"SUM(H35:J35)","v":0}]
[null,null,null,null,null,null,null,null,null,null,{"$f":"SUM(H36:J36)","v":0}]
[null,null,null,null,null,null,null,null,null,null,{"$f":"SUM(H37:J37)","v":0}]
[null,null,"SUBTOTAL",null,null,null,null,null,null,null,{"$f":"SUM(K35:K37)","v":0}]
[null,null,"TOTAL CAPACITACIÓN NACIONAL",null,null,null,null,null,null,null,{"$f":"+K32+K38","v":0}]
[]
[null,null,"CAPACITACION INTERNACIONAL\n(Incluye todos los gastos relacionados con las comisiones de tipo FORMACIÓN Internacional, incluye los viáticos, pasajes, inscripción y matrícula.)"]
[null,null,"TIPO","NO. PERSONAS","DURACIÓN INTERNACIONAL (NO. DIAS) POR PERSONA","VALOR INSCRIPCIÓN MATRICULA INTERNACIONAL POR PERSONA","NO. PASAJES INTERNACIONALES POR PERSONA","VALOR TOTAL INSCRIPCIÓN MATRICULAS INTERNACIONALES","VALOR TOTAL PASAJES INTERNACIONALES","VALOR TOTAL VIATICOS INTERNACIONALES","TOTAL"]
[null,null,"Seminario, Taller, Simposio, otros"]
[null,null,null,null,null,null,null,{"$f":"D44*F44","v":0},{"$f":"D44*G44*$F$17","v":0},{"$f":"D44*E44*$F$18","v":0},{"$f":"SUM(H44:J44)","v":0}]
[null,null,null,null,null,null,null,{"$f":"D45*F45","v":0},{"$f":"D45*G45*$F$17","v":0},{"$f":"D45*E45*$F$18","v":0},{"$f":"SUM(H45:J45)","v":0}]
[null,null,null,null,null,null,null,{"$f":"D46*F46","v":0},{"$f":"D46*G46*$F$17","v":0},{"$f":"D46*E46*$F$18","v":0},{"$f":"SUM(H46:J46)","v":0}]
[null,null,null,null,null,null,null,{"$f":"D47*F47","v":0},{"$f":"D47*G47*$F$17","v":0},{"$f":"D47*E47*$F$18","v":0},{"$f":"SUM(H47:J47)","v":0}]
[null,null,null,null,null,null,null,{"$f":"D48*F48","v":0},{"$f":"D48*G48*$F$17","v":0},{"$f":"D48*E48*$F$18","v":0},{"$f":"SUM(H48:J48)","v":0}]
[null,null,"TOTAL CAPACITACIÓN INTERNACIONAL",null,null,null,null,null,null,null,{"$f":"SUM(K44:K48)","v":0}]
[]
[null,null,"TOTAL CAPACITACIÓN ",null,null,null,null,null,null,null,{"$f":"K32+K39+K49","v":0}]

{"sheet":"IMPUESTO-CONTRIBUCIONES Y G.F","index":14,"n_rows":35,"n_cols":5,"rows_kept":35,"cut":false,"hidden":false,"merged":[[5,1,5,5],[12,2,12,4],[13,2,13,4],[14,2,15,2],[14,3,14,4],[0,1,0,5],[1,1,1,5],[2,1,2,5],[3,1,3,5],[4,1,4,5],[34,2,34,3],[24,2,24,4],[23,2,23,4],[7,2,7,4],[9,2,9,4],[25,2,26,2],[25,3,25,4]]}
[]
[]
[null,"VICERRECTORÍA ADMINISTRATIVA Y FINANCIERA","VICERRECTORIA ADMINISTRATIVA"]
[null,"FORMATO INTERNO DE PRESUPUESTO DE PROYECTOS  Y PROGRAMAS","FORMATOS DE PRESUPUESTO"]
[null,{"$f":"+'ITEMS PRESUPUESTO'!B7:J7","v":"VIGENCIA 2020"}]
[]
[]
[null,null,"IMPUESTOS, CONTRIBUCIONES Y GASTOS FINANCIEROS"]
[]
[null,null,"Nota: Diligenciar únicamento los espacios en blanco"]
[]
[]
[null,null,"IMPUESTOS Y CONTRIBUCIONES"]
[]
[null,null,"DESCRIPCION","AÑO"]
[null,null,null,"VALOR ","TOTAL"]
[null,null,"Estampillas",null,{"$f":"+D17","v":0}]
[null,null,"Sayco y Acinpro",null,{"$f":"+D18","v":0}]
[null,null,"Contrapartida IVA (Proyectos Colciencias)",null,0]
[null,null,"Otros como: Derechos Ministerio, Trámites Notariales",null,0]
[null,null,null,null,0]
[null,null,"TOTAL IMPUESTOS Y CONTRIBUCIONES",null,{"$f":"SUM(E17:E21)","v":0}]
[]
[null,null,"GASTOS FINANCIEROS"]
[]
[null,null,"DESCRIPCION","AÑO"]
[null,null,null,"VALOR ","TOTAL"]
[null,null,"Comisiones bancarias",null,{"$f":"+D28","v":0}]
[null,null,"TRM",null,{"$f":"+D29","v":0}]
[null,null,"Otros:",null,0]
[null,null,null,null,0]
[null,null,null,null,0]
[null,null,"TOTAL GASTOS FINANCIEROS",null,{"$f":"SUM(E28:E32)","v":0}]
[]
[null,null,"IMPUESTOS, CONTRIBUCIONES Y GASTOS FINANCIEROS",null,{"$f":"+E22+E33","v":0}]

{"sheet":"OTROS GASTOS POR ADQUISICIÓN","index":15,"n_rows":19,"n_cols":10,"rows_kept":19,"cut":false,"hidden":false,"merged":[[10,2,10,7],[11,2,11,7],[18,2,18,6],[15,2,15,6],[7,2,7,7],[5,1,5,8],[0,1,0,8],[1,1,1,8],[2,2,2,7],[3,2,3,7],[4,2,4,7]]}
[]
[null,null,null,null,null,null,null,null,null,"Incremento proyectado"]
[null,null,"VICERRECTORÍA ADMINISTRATIVA Y FINANCIERA",null,null,null,null,null,null,1.08]
[null,null,"FORMATO INTERNO DE PRESUPUESTO DE PROYECTOS  Y PROGRAMAS"]
[null,null,{"$f":"+'ITEMS PRESUPUESTO'!B7","v":"VIGENCIA 2020"},null,null,{"$f":"+'ITEMS PRESUPUESTO'!B7:J7","v":0}]
[]
[]
[null,null,"PROYECCION OTROS GASTOS POR ADQUISICIÓN DE SERVICIOS"]
[]
[]
[null,null,"OTROS GASTOS POR ADQUISICIÓN DE SERVICIOS"]
[]
[null,null,"CONCEPTO","DEFINICIÓN","DESCRIPCIÓN","VALOR","CANTIDAD","TOTAL"]
[null,null,"Servicios Logísticos","Incluye la contratación de personas naturales o jurídicas que en el marco de su actividad económica preste servicios logísticos (organización de eventos) y servicios de alimentación.",null,null,null,{"$f":"F14*G14","v":0}]
[null,null,"Afiliaciones, Sostenimiento y Membresías","Es el pago que se realiza a una organización o entidad\nnacional o internacional para poder pertenecer a la misma, recibiendo información sobre sus servicios y productos.",null,null,null,{"$f":"F15*G15","v":0}]
[null,null,"Otros:"]
[null,null,null,null,null,null,null,{"$f":"F17*G17","v":0}]
[null,null,null,null,null,null,null,{"$f":"F18*G18","v":0}]
[null,null,"TOTAL OTROS GASTOS POR ADQUISICIÓN DE SERVICIOS",null,null,null,null,{"$f":"SUM(H14:H18)","v":0}]

{"sheet":"ESTUDIANTES","index":16,"n_rows":46,"n_cols":6,"rows_kept":46,"cut":false,"hidden":false,"merged":[[23,2,23,5],[13,2,13,5],[28,2,28,4],[42,3,42,4],[31,2,31,5],[39,2,39,4],[0,1,0,6],[5,1,5,6],[1,2,1,6],[2,2,2,6],[19,2,19,4],[3,2,3,6],[4,2,4,6],[7,2,7,5]]}
[]
[]
[null,null,"VICERRECTORÍA ADMINISTRATIVA Y FINANCIERA"]
[null,null,"FORMATO INTERNO DE PRESUPUESTO DE PROYECTOS  Y PROGRAMAS"]
[null,null,{"$f":"+'ITEMS PRESUPUESTO'!B7","v":"VIGENCIA 2020"}]
[]
[]
[null,null,"PROYECCIÓN COSTOS ESTUDIANTES"]
[]
[null,null,"Nota: Diligenciar únicamente los espacios en blanco",null,"SMMLV 2019",828116]
[null,null,null,null,"SMMLV 2020 proyectado",{"$f":"+F10*(1+'GASTOS DE PERSONAL'!H25)","v":877802.96000000008}]
[]
[]
[null,null,"ESTUDIANTES PREGRADO\n (JORNADA ESPECIAL, COHORTE, EXTENSIÓN, CERES)"]
[null,null,"CONCEPTO","VALOR ","No. ESTUDIANTES","TOTAL"]
[null,null,"Seguro estudiantil",{"$f":"38871*1.1","v":42758.100000000006},null,{"$f":"E16*$D16","v":0}]
[null,null,"Servicio de Redes (5% SMMLV)",{"$f":"5%*F11","v":43890.148000000008},null,{"$f":"E17*$D17","v":0}]
[null,null,"Carnetización (1,26% SMMLV Estudiantes Primíparos)",{"$f":"1.26%*F11","v":11060.317296000001},null,{"$f":"E18*$D18","v":0}]
[null,null,"Otro:",null,null,{"$f":"E19*$D19","v":0}]
[null,null,"TOTAL SERVICIOS ESTUDIANTES",null,null,{"$f":"SUM(F16:F19)","v":0}]
[]
[]
[]
[null,null,"ESTUDIANTES POSGRADO"]
[null,null,"CONCEPTO","VALOR ","No. ESTUDIANTES","TOTAL"]
[null,null,"Seguro estudiantil",{"$f":"38871*1.1","v":42758.100000000006},null,{"$f":"E26*$D26","v":0}]
[null,null,"Carnetización (1,26% SMMLV Estudiantes Primíparos)",{"$f":"1.26%*F11","v":11060.317296000001},null,{"$f":"E27*$D27","v":0}]
[null,null,"Otro:",null,null,{"$f":"E28*$D28","v":0}]
[null,null,"TOTAL SERVICIOS ESTUDIANTES",null,null,{"$f":"SUM(F26:F28)","v":0}]
[]
[]
[null,null,"OTROS COSTOS ESPECÍFICOS ESTUDIANTES: APORTES SEGURIDAD SOCIAL Y ARL"]
[null,null,"IDENTIFICACION DEL SEGURO","VALOR ","No. ESTUDIANTES","TOTAL"]
[null,null,"Afiliación EPS Cotizante 21 (12,5% SMMLV)",{"$f":"+F11*12.5%","v":109725.37000000001},null,{"$f":"E34*$D34*12","v":0}]
[null,null,"Afiliación ARL Cotizante 21 (2,436% SMMLV)",{"$f":"+F11*2.436%","v":21383.280105600003},null,{"$f":"E35*$D35*12","v":0}]
[null,null,"Afiliación ARL Radiología Cotizante 21 (6,97% SMMLV)",{"$f":"+F11*6.97%","v":61182.866312000006},null,{"$f":"E36*$D36*12","v":0}]
[null,null,"Afiliación ARL Decreto 055 de 2015 (estudiantes en escenarios prácticas o asignaturas práticas)",{"$f":"+F11*0.522%","v":4582.1314511999999},null,{"$f":"E37*$D37*12","v":0}]
[null,null,"Otro: ",null,null,{"$f":"E38*$D38","v":0}]
[]
[null,null,"TOTAL  APORTES SEGURIDAD SOCIAL Y ARL ESTUDIANTES",null,null,{"$f":"SUM(F34:F39)","v":0}]
[]
[]
[null,null,null,"Póliza Seguro Estudiantil"]
[null,null,null,5500,"Valor Oct 2009-2010"]
[null,null,null,6200,"Valor Oct 2010-2011"]
[null,null,null,{"$f":"+D45/D44","v":1.1272727272727272},"Incremento"]

{"sheet":"INVERSIÓN","index":17,"n_rows":21,"n_cols":8,"rows_kept":21,"cut":false,"hidden":false,"merged":[[20,2,20,6],[14,2,14,6],[19,2,19,6],[1,2,1,7],[2,2,2,7],[3,2,3,7],[7,2,7,7],[10,2,13,2],[0,1,0,8],[4,1,4,8],[6,1,6,8],[8,2,8,7],[15,2,17,2]]}
[]
[null,null,"VICERRECTORÍA ADMINISTRATIVA Y FINANCIERA"]
[null,null,"FORMATO INTERNO DE PRESUPUESTO DE PROYECTOS  Y PROGRAMAS"]
[null,null,{"$f":"+'ITEMS PRESUPUESTO'!B7","v":"VIGENCIA 2020"}]
[]
[]
[null,"PROYECCIÓN INVERSIÓN "]
[null,null,"Nota: La Oficina de Planeación es la encargada del manejo de las obras civiles y remodelaciones dentro en la Institución, por tanto se recomienda solicitar ante esta oficina asesoría en los valores de las mismas.\nObra civil: Contempla todo lo relacionado con Obra civil (Construcción).\nRemodelación e instalación: Contempla las adecuaciones de espacios, instalación de paneles, módulos, entre otros."]
[null,null,"PROYECCIÓN INVERSIÓN "]
[null,null,"CONCEPTO","TIPO DE ESPACIO","DESCRIPCIÓN DEL SERVICIO","VALOR","CANTIDAD","TOTAL"]
[null,null,"Obra civil","Aula",null,null,null,{"$f":"+F11*G11","v":0}]
[null,null,null,"Oficina",null,null,null,{"$f":"+F12*G12","v":0}]
[null,null,null,"Laboratorio",null,null,null,{"$f":"+F13*G13","v":0}]
[null,null,null,"Otro:",null,null,null,{"$f":"+F14*G14","v":0}]
[null,null,"TOTAL OBRA CIVIL ",null,null,null,null,{"$f":"SUM(H11:H14)","v":0}]
[null,null,"Remodelación e instalación ","Aula",null,null,null,{"$f":"+F16*G16","v":0}]
[null,null,null,"Oficina",null,null,null,{"$f":"+F17*G17","v":0}]
[null,null,null,"Laboratorio",null,null,null,{"$f":"+F18*G18","v":0}]
[null,null,null,"Otro:",null,null,null,{"$f":"+F19*G19","v":0}]
[null,null,"TOTAL REMODELACIÓN E INSTALACIÓN",null,null,null,null,{"$f":"SUM(H16:H19)","v":0}]
[null,null,"TOTAL INVERSIÓN",null,null,null,null,{"$f":"+H15+H20","v":0}]

{"sheet":"INGRESOS","index":18,"n_rows":83,"n_cols":7,"rows_kept":83,"cut":false,"hidden":false,"merged":[[62,2,62,5],[61,2,61,3],[57,2,57,3],[64,2,64,6],[58,2,58,3],[59,2,59,3],[60,2,60,3],[55,5,56,5],[55,6,56,6],[7,2,7,6],[11,2,11,6],[48,2,48,5],[66,2,67,3],[55,2,56,3],[55,4,56,4],[49,2,49,5],[12,2,12,6],[53,2,53,6],[54,2,54,6],[51,2,51,5],[17,2,17,6],[35,2,35,6],[14,4,14,5],[15,4,15,5],[31,2,31,5],[50,2,50,5],[32,2,32,5],[33,2,33,5],[5,1,5,7],[0,1,0,7],[1,1,1,7],[2,1,2,7],[3,1,3,7],[4,1,4,7],[82,2,82,5],[74,4,75,5],[74,6,75,6],[76,4,76,5],[77,4,77,5],[81,2,81,3],[80,2,80,3],[79,2,79,3],[78,2,78,3],[65,2,65,6],[80,4,80,5],[81,4,81,5],[66,6,67,6],[79,4,79,5],[78,4,78,5],[66,5,67,5],[69,2,69,3],[77,2,77,3],[76,2,76,3],[74,2,75,3],[72,2,72,6],[73,2,73,6],[66,4,67,4],[70,2,70,5],[68,2,68,3]]}
[]
[]
[null,"VICERRECTORÍA ADMINISTRATIVA Y FINANCIERA","VICERRECTORIA ADMINISTRATIVA"]
[null,"FORMATO INTERNO DE PRESUPUESTO DE PROYECTOS  Y PROGRAMAS","FORMATOS DE PRESUPUESTO"]
[null,{"$f":"+'ITEMS PRESUPUESTO'!B7:J7","v":"VIGENCIA 2020"}]
[]
[]
[null,null,"PROYECCION INGRESOS"]
[null,null,"Nota: Diligenciar únicamente los espacios en blanco"]
[]
[]
[null,null,"INGRESOS ACÁDEMICOS"]
[null,null,"Nota 1: El valor de las inscripciones y las matrículas para los Programas de Pregrado y Posgrado deben expresarse en SMMLV.\nNota 2: El valor de la inscripción de los Pregrados es de 0,10 SMMLV (Acuerdo No. 08 de1997) \nNota 3: El valor de la inscripción de los Posgrados es de 0,25 SMMLV, excepto los posgrados en Ciencias Clínicas (1 SMMLV) . (Acuerdo No.15 de 2006 y Acuerdo No. 50 de 2009)."]
[]
[null,null,null,null,"SMMLV 2019",null,828116]
[null,null,null,null,"SMMLV 2020",null,{"$f":"+G15*(1+'GASTOS DE PERSONAL'!H25)","v":877802.96000000008}]
[]
[null,null,"PROGRAMAS PREGRADO"]
[null,null,"DESCRIPCION","SALARIOS MINIMOS","VALOR UNITARIO","No. DE ESTUDIANTES","TOTAL"]
[null,null,"Inscripción",0.1,{"$f":"D20*$G$16","v":87780.296000000017},null,{"$f":"F20*$E20","v":0}]
[null,null,"Matrícula I Semestre",null,0,null,0]
[null,null,"Matrícula II Semestre",null,0,null,0]
[null,null,"Matrícula III Semestre",null,0,null,0]
[null,null,"Matrícula IV Semestre",null,0,null,0]
[null,null,"Matrícula V Semestre",null,{"$f":"D25*$G$16","v":0},null,0]
[null,null,"Matrícula VI Semestre",null,0,null,0]
[null,null,"Matrícula VII Semestre",null,0,null,0]
[null,null,"MatrículaVIII Semestre",null,0,null,0]
[null,null,"Matrícula IX Semestre",null,0,null,0]
[null,null,"Matrícula X Semestre",null,{"$f":"D30*$G$16","v":0},null,{"$f":"F30*$E30","v":0}]
[null,null,"Otros",null,null,null,{"$f":"F31*$E31","v":0}]
[null,null,"Descuento por  Votaciones (10% Valor de matrícula)",null,null,null,{"$f":"SUM(G21:G31)*0.1","v":0}]
[null,null,"Derechos académicos (Servicios Especiales)",null,null,null,{"$f":"SUM(G21:G31)*0.1","v":0}]
[null,null,"TOTAL INGRESOS ACADÉMICOS PREGRADO",null,null,null,{"$f":"SUM(G21:G30)+G31-G32-G33","v":0}]
[]
[null,null,"PROGRAMAS POSGRADO"]
[null,null,"DESCRIPCION","SALARIOS MINIMOS","VALOR UNITARIO","No. DE ESTUDIANTES","TOTAL"]
[null,null,"Inscripción",0.25,{"$f":"D38*$G$16","v":219450.74000000002},null,{"$f":"F38*$E38","v":0}]
[null,null,"Inscripción Especializaciones Médicas",1,{"$f":"D39*$G$16","v":877802.96000000008},null,{"$f":"F39*$E39","v":0}]
[null,null,"Matrícula I Semestre",null,0,null,0]
[null,null,"Matrícula II Semestre ",null,0,null,0]
[null,null,"Matrícula III Semestre ",null,0,null,0]
[null,null,"Matrícula IV Semestre",null,0,null,0]
[null,null,"Matrícula V Semestre",null,0,null,0]
[null,null,"Matrícula VI Semestre",null,0,null,0]
[null,null,"Matrícula VII Semestre",null,0,null,0]
[null,null,"Matrícula VIII Semestre",null,0,null,0]
[null,null,"Otros",null,null,null,{"$f":"F48*$E48","v":0}]
[null,null,"Descuento por  Votaciones (10% Valor de matrícula)",null,null,null,{"$f":"SUM(G40:G48)*0.1","v":0}]
[null,null,"Descuento por Egresados (10% Valor de matrícula)",null,null,null,{"$f":"SUM(G40:G48)*0.1","v":0}]
[null,null,"Otro tipo de Descuento "]
[null,null,"TOTAL INGRESOS ACADÉMICOS POSGRADO",null,null,null,{"$f":"+G38+G39+SUM(G40:G47)+G48-G49-G50-G51","v":0}]
[]
[null,null,"VENTA DE SERVICIOS"]
[null,null,"Nota: Favor diligenciar la descripción de los servicios que se se proyectan para la vigencia."]
[null,null,"DESCRIPCION",null,"VALOR DEL SERVICIO","NÚMERO DE SERVICIOS","TOTAL"]
[]
[null,null,null,null,null,null,{"$f":"E58*F58","v":0}]
[null,null,null,null,null,null,{"$f":"E59*F59","v":0}]
[null,null,null,null,null,null,{"$f":"E60*F60","v":0}]
[null,null,null,null,null,null,{"$f":"E61*F61","v":0}]
[null,null,null,null,null,null,{"$f":"E62*F62","v":0}]
[null,null,"TOTAL VENTA DE SERVICIOS",null,null,null,{"$f":"SUM(G58:G62)","v":0}]
[]
[null,null,"CONTRATOS O CONVENIOS"]
[null,null,"Nota: El Contrato o Convenio debe estar debidamente legalizado antes de la presentación del presupuesto."]
[null,null,"DESCRIPCION",null,"NUMERO DE CONVENIO","VALOR (INGRESO NETO)","TOTAL"]
[]
[null,null,"Convenio Interinstitucional",null,null,null,{"$f":"F69","v":0}]
[null,null,"Otro Tipo de Contrato o Convenio",null,null,null,{"$f":"F70","v":0}]
[null,null,"TOTAL CONTRATOS O CONVENIOS",null,null,null,{"$f":"SUM(G69:G70)","v":0}]
[]
[null,null,"APORTES"]
[null,null,"Nota: El valor de los Aportes debe estar aprobado por la Vicerrectoría Administrativa"]
[null,null,"DESCRIPCION",null,"VALOR APORTE",null,"TOTAL"]
[]
[null,null,"Nación",null,null,null,{"$f":"E77","v":0}]
[null,null,"Departamento",null,null,null,0]
[null,null,"Municipio",null,null,null,0]
[null,null,"Empresa Privada",null,null,null,0]
[null,null,"Cooperación Internacional",null,null,null,0]
[null,null,"UTP",null,null,null,0]
[null,null,"TOTAL APORTES",null,null,null,{"$f":"SUM(G77:G82)","v":0}]

{"sheet":"FLUJO DE CAJA","index":19,"n_rows":69,"n_cols":3,"rows_kept":69,"cut":false,"hidden":false,"merged":[[55,1,55,2],[52,1,52,2],[53,1,54,1],[9,2,10,2],[53,2,54,2],[6,1,6,2],[8,1,8,2],[9,1,10,1],[0,1,0,2],[1,1,1,2],[2,1,2,2],[3,1,3,2],[4,1,4,2]]}
[]
[null,"VICERRECTORÍA ADMINISTRATIVA Y FINANCIERA","VICERRECTORIA ADMINISTRATIVA"]
[null,"FLUJO DE CAJA ","FLUJO DE CAJA"]
[null,{"$f":"+'ITEMS PRESUPUESTO'!B7","v":"VIGENCIA 2020"}]
[null,null,"FLUJO DE CAJA"]
[]
[null,"FLUJO DE CAJA POR AÑO"]
[]
[null," FLUJO DE EGRESOS  "]
[null,"DETALLE","TOTAL"]
[]
[null,"INVERSION",{"$f":"SUM(C13:C14)","v":0}]
[null,"Obra Civil",{"$f":"INVERSIÓN!H15","v":0}]
[null,"Remodelación e instalación",{"$f":"+INVERSIÓN!H20","v":0}]
[null,"GASTOS DE PERSONAL",{"$f":"SUM(C16:C30)","v":0}]
["PS","Prestación de Servicios (órdenes contractuales)",{"$f":"SUMIF('GASTOS DE PERSONAL'!$F$35:$F$80,A16,'GASTOS DE PERSONAL'!$K$35:$K$80)","v":0}]
["O","Ocasional de Proyecto",{"$f":"SUMIF('GASTOS DE PERSONAL'!$F$35:$F$80,A17,'GASTOS DE PERSONAL'!$K$35:$K$80)","v":0}]
["TD","Docentes Transitorios",{"$f":"SUMIF('GASTOS DE PERSONAL'!$F$35:$F$80,A18,'GASTOS DE PERSONAL'!$K$35:$K$80)","v":0}]
["TA","Transitorios Administrativos",{"$f":"SUMIF('GASTOS DE PERSONAL'!$F$35:$F$80,A19,'GASTOS DE PERSONAL'!$K$35:$K$80)","v":0}]
["DC","Docentes catedráticos",{"$f":"SUMIF('GASTOS DE PERSONAL'!$F$35:$F$80,A20,'GASTOS DE PERSONAL'!$K$35:$K$80)","v":0}]
["HC","Hora Cátedra",{"$f":"SUMIF('GASTOS DE PERSONAL'!$F$35:$F$80,A21,'GASTOS DE PERSONAL'!$K$35:$K$80)","v":0}]
[null,"Monitorías Académicas",{"$f":"'MONITORÍAS ACADÉMICAS'!$N$45","v":0}]
["M","Monitorías Proyecto",{"$f":"SUMIF('GASTOS DE PERSONAL'!$F$35:$F$80,A23,'GASTOS DE PERSONAL'!$K$35:$K$80)","v":0}]
["TG","Directores, Jurados y Evaluadores",{"$f":"SUMIF('GASTOS DE PERSONAL'!$F$35:$F$80,A24,'GASTOS DE PERSONAL'!$K$35:$K$80)","v":0}]
["ILEX","Cursos ILEX",{"$f":"SUMIF('GASTOS DE PERSONAL'!$F$35:$F$80,A25,'GASTOS DE PERSONAL'!$K$35:$K$80)","v":0}]
["ST","Servicios Técnicos Especiales",{"$f":"SUMIF('GASTOS DE PERSONAL'!$F$35:$F$80,A26,'GASTOS DE PERSONAL'!$K$35:$K$80)","v":0}]
["EA","Estímulos Labores Administrativas",{"$f":"SUMIF('GASTOS DE PERSONAL'!$F$35:$F$80,A27,'GASTOS DE PERSONAL'!$K$35:$K$80)","v":0}]
["BE","Bonificación Servicios De Extensión ",{"$f":"SUMIF('GASTOS DE PERSONAL'!$F$35:$F$80,A28,'GASTOS DE PERSONAL'!$K$35:$K$80)","v":0}]
["CO","Coordinación",{"$f":"SUMIF('GASTOS DE PERSONAL'!$F$35:$F$80,A29,'GASTOS DE PERSONAL'!$K$35:$K$80)","v":0}]
[null,"Aportes seguridad social y ARL",{"$f":"ESTUDIANTES!$F$40","v":0}]
[null,"GASTOS GENERALES",{"$f":"SUM(C32:C50)","v":0}]
[null,"Compra de equipo  ",{"$f":"+'COMPRA EQUIPO'!J52","v":0}]
[null,"Seguros",{"$f":"+SEGUROS!F34+ESTUDIANTES!F16+ESTUDIANTES!F26","v":0}]
[null,"Mantenimiento",{"$f":"MANTENIMIENTO!F45","v":0}]
[null,"Materiales y suministros",{"$f":"+'MATERIALES Y SUMINISTROS'!$J$42","v":0}]
[null,"Otros Gastos por adquisición de servicios",{"$f":"+'OTROS GASTOS POR ADQUISICIÓN'!H19","v":0}]
[null,"Impresos y publicaciones",{"$f":"'IMPRESOS Y PUBLICACIONES'!G89+'LIBROS Y REVISTAS'!S32+ESTUDIANTES!F18+ESTUDIANTES!F27","v":0}]
[null,"Comunicaciones y Transporte",{"$f":"'COMUNICACION Y TRANSPORTE'!G29+ESTUDIANTES!F17","v":0}]
[null,"Arrendamiento",{"$f":"+ARRENDAMIENTO!G54","v":0}]
[null,"Impuestos, Contribuciones y Gastos Financieros",{"$f":"+'IMPUESTO-CONTRIBUCIONES Y G.F'!E35","v":0}]
[null,"Servicios públicos",{"$f":"+'SERVICIOS PUBLICOS'!F30","v":0}]
[null,"Viáticos y gastos de viaje",{"$f":"'VIATICOS Y GASTOS DE VIAJE'!H58","v":0}]
[null,"Capacitación",{"$f":"CAPACITACION!K51","v":0}]
[null,"Gastos de funcionamiento adicionales  ",{"$f":"+ESTUDIANTES!F19+ESTUDIANTES!F28","v":0}]
[null,"Transferencias Bienestar Universitario (Matrícula y apoyos socioeconómicos)",0]
[null,"Transferencias (Contrapartidas Colciencias, otros)",0]
[null,"Administración 5%",{"$f":"($C$61-$C$60)*0.05","v":0}]
[null,"Biblioteca 5%",{"$f":"($C$61-$C$60)*0.05","v":0}]
[null,"Investigación 5%",{"$f":"($C$61-$C$60)*0.05","v":0}]
[null,"Gastos Generales 5%",{"$f":"($C$61-$C$60)*0.05","v":0}]
[null,"TOTAL  GASTOS",{"$f":"+C31+C15+C12","v":0}]
[]
[null,"FLUJO  DE INGRESOS"]
[null,"DETALLE","TOTAL"]
[]
[null,"RECURSOS GENERADOS POR EL PROYECTO"]
[null,"Ingresos Académicos",{"$f":"+INGRESOS!G34+INGRESOS!G52","v":0}]
[null,"Venta de servicios",{"$f":"+INGRESOS!G63","v":0}]
[null,"Contratos o Convenios",{"$f":"+INGRESOS!G71","v":0}]
[null,"Aportes",{"$f":"+INGRESOS!G83","v":0}]
[null,"TOTAL  INGRESOS",{"$f":"SUM(C57:C60)","v":0}]
[]
[null,"DIFERENCIA  (INGRESOS-GASTOS)",{"$f":"C61-C51","v":0}]
[]
[null,"PUNTO DE EQUILIBRIO",{"$f":"IF(INGRESOS!F40+INGRESOS!F21>0,(C51/(SUM(INGRESOS!E40:E47)+SUM(INGRESOS!E21:E30)-((SUM(INGRESOS!E40:E47)+SUM(INGRESOS!E21:E30))*0.2))*1.2),\"No Aplica\")","v":"No Aplica"}]
[]
[null,"Vo. Bo. Jefe Gestión Financiera"]
[null,"APROBADO"]
[null,"RECHAZADO"]